Workbook

Sheet Ejecuc
A2: SISTEMA DE PRESUPUESTO DISTRITAL - PREDIS
A3: EJECUCIÓN PRESUPUESTO | L3: =+Plano!A5 -> VIGENCIA 2019 | M3: =MID(L3,10,4) -> 2019
A4: INFORME DE EJECUCIONES DEL PRESUPUESTO DE GASTOS E INVERSIONES | L4: =+Plano!A6 -> MES 6 | M4: =MID(L4,5,2) -> 6
M5: =VALUE(M4) -> 6
A6: ENTIDAD: | B6: 119 - SECRETARÍA DISTRITAL DE CULTURA, RECREACIÓN Y DEPORTE | F6: MES: | I6: JUNIO | L6: 1 | M6: ENERO
A7: UNIDAD EJECUTORA: | B7: 01 - UNIDAD 01 | F7: VIGENCIA FISCAL: | I7: 2019 | L7: 2 | M7: FEBRERO
A8: CÓDIGO | B8: NOMBRE | C8: APROPIACION DISPONIBLE | E8: COMPROMISOS | H8: AUTORIZACIONES DE GIRO | L8: 3 | M8: MARZO
A9: 3 | B9: =VLOOKUP($A9,DATO1,2,0) -> GASTOS | C9: 201393492000 | D9: 10481347290 | E9: 94671174465 | F9: =+E9/C9 -> 0.4700806045 | G9: 16982303921 | H9: 42501754081 | I9: =IF(C9=" 0"," ",+H9/C9) -> 0.211038369 | L9: 4 | M9: ABRIL
A10: 3-1 | B10: =VLOOKUP($A10,DATO1,2,0) -> GASTOS DE FUNCIONAMIENTO | C10: 22831867000 | D10: 2334033532 | E10: 11321529961 | F10: =+E10/C10 -> 0.4958652729 | G10: 2665995471 | H10: 9456241406 | I10: =IF(C10=" 0"," ",+H10/C10) -> 0.4141685569 | L10: 5 | M10: MAYO
A11: 3-1-1 | B11: Gastos de personal | C11: 19088692000 | D11: 2297747154 | E11: 8180617677 | F11: 0.4285583149 | G11: 2306039262 | H11: 8104566919 | I11: =IF(C11=" 0"," ",+H11/C11) -> 0.4245742411 | L11: 6 | M11: JUNIO
A12: 3-1-1-01 | B12: Planta de personal permanente | C12: 19088692000 | D12: 2297747154 | E12: 8180617677 | F12: 0.4285583149 | G12: 2306039262 | H12: 8104566919 | I12: =IF(C12=" 0"," ",+H12/C12) -> 0.4245742411 | L12: 7 | M12: JULIO
A13: 3-1-1-01-01 | B13: Factores constitutivos de salario | C13: 14009646739 | D13: 1989464376 | E13: 6629731601 | F13: 0.4732261794 | G13: 1995868847 | H13: 6553680843 | I13: =IF(C13=" 0"," ",+H13/C13) -> 0.4677977229 | L13: 8 | M13: AGOSTO
A14: 3-1-1-01-01-01 | B14: Factores salariales comunes | C14: 9971517739 | D14: 753538759 | E14: 4361164051 | F14: 0.4373621113 | G14: 757156002 | H14: 4285113293 | I14: =IF(C14=" 0"," ",+H14/C14) -> 0.4297353126 | L14: 9 | M14: SEPTIEMBRE
A15: 3-1-1-01-01-01-0001 | B15: Sueldo básico | C15: 7290228403 | D15: 616055680 | E15: 3608404437 | F15: 0.4949645248 | G15: 618074240 | H15: 3532353679 | I15: =IF(C15=" 0"," ",+H15/C15) -> 0.4845326489 | L15: 10 | M15: OCTUBRE
A16: 3-1-1-01-01-01-0004 | B16: Gastos de representación | C16: 771188000 | D16: 54456165 | E16: 344431451 | F16: 0.4466244949 | G16: 54456165 | H16: 344431451 | I16: =IF(C16=" 0"," ",+H16/C16) -> 0.4466244949 | L16: 11 | M16: NOVIEMBRE
A17: 3-1-1-01-01-01-0005 | B17: Horas Extras, Dominicales, Festivos, Recargo Nocturno y Trabajo Suplementario | C17: 64446336 | D17: 1321407 | E17: 7977734 | F17: 0.1237887907 | G17: 1321407 | H17: 7977734 | I17: =IF(C17=" 0"," ",+H17/C17) -> 0.1237887907 | L17: 12 | M17: DICIEMBRE
A18: 3-1-1-01-01-01-0006 | B18: Auxilio de transporte | C18: 1106000 | D18: 97032 | E18: 582192 | F18: 0.5263942134 | G18: 97032 | H18: 582192 | I18: =IF(C18=" 0"," ",+H18/C18) -> 0.5263942134
A19: 3-1-1-01-01-01-0007 | B19: Subsidio de alimentación | C19: 12755000 | D19: 816097 | E19: 5129385 | F19: 0.4021470012 | G19: 816097 | H19: 5129385 | I19: =IF(C19=" 0"," ",+H19/C19) -> 0.4021470012
A20: 3-1-1-01-01-01-0008 | B20: Bonificación por servicios prestados | C20: 240907000 | D20: 1548799 | E20: 141489791 | F20: 0.5873212111 | G20: 1548799 | H20: 141489791 | I20: =IF(C20=" 0"," ",+H20/C20) -> 0.5873212111
A21: 3-1-1-01-01-01-0010 | B21: Prima de navidad | C21: 1074930000 | D21: 5344328 | E21: 9894547 | F21: 0.009204829152 | G21: 6582124 | H21: 9894547 | I21: =IF(C21=" 0"," ",+H21/C21) -> 0.009204829152
A22: 3-1-1-01-01-01-0011 | B22: Prima de vacaciones | C22: 515957000 | D22: 73899251 | E22: 243254514 | F22: 0.4714627653 | G22: 74260138 | H22: 243254514 | I22: =IF(C22=" 0"," ",+H22/C22) -> 0.4714627653
A23: 3-1-1-01-01-02 | B23: Factores salariales especiales | C23: 4038129000 | D23: 1235925617 | E23: 2268567550 | F23: 0.5617867953 | G23: 1238712845 | H23: 2268567550 | I23: =IF(C23=" 0"," ",+H23/C23) -> 0.5617867953
A24: 3-1-1-01-01-02-0001 | B24: Prima de antigüedad | C24: 149845000 | D24: 12309034 | E24: 78989447 | F24: 0.5271410257 | G24: 12309034 | H24: 78989447 | I24: =IF(C24=" 0"," ",+H24/C24) -> 0.5271410257
A25: 3-1-1-01-01-02-0002 | B25: Prima Técnica | C25: 2699255000 | D25: 178174777 | E25: 1141349069 | F25: 0.4228385495 | G25: 178174777 | H25: 1141349069 | I25: =IF(C25=" 0"," ",+H25/C25) -> 0.4228385495
A26: 3-1-1-01-01-02-0003 | B26: Prima Semestral | C26: 1189029000 | D26: 1045441806 | E26: 1048229034 | F26: 0.8815840774 | G26: 1048229034 | H26: 1048229034 | I26: =IF(C26=" 0"," ",+H26/C26) -> 0.8815840774
A27: 3-1-1-01-02 | B27: Contribuciones inherentes a la nómina | C27: 4859646000 | D27: 283425379 | E27: 1406149589 | F27: 0.2893522674 | G27: 284728302 | H27: 1406149589 | I27: =IF(C27=" 0"," ",+H27/C27) -> 0.2893522674
A28: 3-1-1-01-02-01 | B28: Aportes a la seguridad social en pensiones | C28: 1353042000 | D28: 103956041 | E28: 528319135 | F28: 0.3904676536 | G28: 103956041 | H28: 528319135 | I28: =IF(C28=" 0"," ",+H28/C28) -> 0.3904676536
A29: 3-1-1-01-02-01-0001 | B29: Aportes a la seguridad social en pensiones públicas | C29: 580662000 | D29: 55878515 | E29: 291761960 | F29: 0.5024643596 | G29: 55878515 | H29: 291761960 | I29: =IF(C29=" 0"," ",+H29/C29) -> 0.5024643596
A30: 3-1-1-01-02-01-0002 | B30: Aportes a la seguridad social en pensiones privadas | C30: 772380000 | D30: 48077526 | E30: 236557175 | F30: 0.3062704563 | G30: 48077526 | H30: 236557175 | I30: =IF(C30=" 0"," ",+H30/C30) -> 0.3062704563
A31: 3-1-1-01-02-02 | B31: Aportes a la seguridad social en salud | C31: 958433000 | D31: 73402941 | E31: 373655735 | F31: 0.389861091 | G31: 73402941 | H31: 373655735 | I31: =IF(C31=" 0"," ",+H31/C31) -> 0.389861091
A32: 3-1-1-01-02-02-0002 | B32: Aportes a la seguridad social en salud privada | C32: 958433000 | D32: 73402941 | E32: 373655735 | F32: 0.389861091 | G32: 73402941 | H32: 373655735 | I32: =IF(C32=" 0"," ",+H32/C32) -> 0.389861091
A33: 3-1-1-01-02-03 | B33: Aportes de cesantías | C33: 1306127000 | D33: 15488497 | E33: 58587219 | F33: 0.04485568325 | G33: 16791420 | H33: 58587219 | I33: =IF(C33=" 0"," ",+H33/C33) -> 0.04485568325
A34: 3-1-1-01-02-03-0001 | B34: Aportes de cesantías a fondos públicos | C34: 612791000 | D34: 11907510 | E34: 52837501 | F34: 0.08622434239 | G34: 13210433 | H34: 52837501 | I34: =IF(C34=" 0"," ",+H34/C34) -> 0.08622434239
A35: 3-1-1-01-02-03-0002 | B35: Aportes de cesantías a fondos privados | C35: 693336000 | D35: 3580987 | E35: 5749718 | F35: 0.008292830604 | G35: 3580987 | H35: 5749718 | I35: =IF(C35=" 0"," ",+H35/C35) -> 0.008292830604
A36: 3-1-1-01-02-04 | B36: Aportes a cajas de compensación familiar | C36: 519242000 | D36: 37703500 | E36: 184117000 | F36: 0.3545880341 | G36: 37703500 | H36: 184117000 | I36: =IF(C36=" 0"," ",+H36/C36) -> 0.3545880341
A37: 3-1-1-01-02-04-0001 | B37: Compensar | C37: 519242000 | D37: 37703500 | E37: 184117000 | F37: 0.3545880341 | G37: 37703500 | H37: 184117000 | I37: =IF(C37=" 0"," ",+H37/C37) -> 0.3545880341
A38: 3-1-1-01-02-05 | B38: Aportes generales al sistema de riesgos laborales | C38: 78864000 | D38: 5716500 | E38: 31181400 | F38: 0.3953819233 | G38: 5716500 | H38: 31181400 | I38: =IF(C38=" 0"," ",+H38/C38) -> 0.3953819233
A39: 3-1-1-01-02-05-0002 | B39: Aportes generales al sistema de riesgos laborales privados | C39: 78864000 | D39: 5716500 | E39: 31181400 | F39: 0.3953819233 | G39: 5716500 | H39: 31181400 | I39: =IF(C39=" 0"," ",+H39/C39) -> 0.3953819233
A40: 3-1-1-01-02-06 | B40: Aportes al ICBF | C40: 389438000 | D40: 28281100 | E40: 138099800 | F40: 0.3546130578 | G40: 28281100 | H40: 138099800 | I40: =IF(C40=" 0"," ",+H40/C40) -> 0.3546130578
A41: 3-1-1-01-02-06-0001 | B41: =VLOOKUP($A41,DATO1,2,0) -> Aportes al ICBF de funcionarios | C41: 389438000 | D41: 28281100 | E41: 138099800 | F41: 0.3546130578 | G41: 28281100 | H41: 138099800 | I41: =IF(C41=" 0"," ",+H41/C41) -> 0.3546130578
A42: 3-1-1-01-02-07 | B42: Aportes al SENA | C42: 64922000 | D42: 4721300 | E42: 23059200 | F42: 0.3551831428 | G42: 4721300 | H42: 23059200 | I42: =IF(C42=" 0"," ",+H42/C42) -> 0.3551831428
A43: 3-1-1-01-02-07-0001 | B43: Aportes al SENA de funcionarios | C43: 64922000 | D43: 4721300 | E43: 23059200 | F43: 0.3551831428 | G43: 4721300 | H43: 23059200 | I43: =IF(C43=" 0"," ",+H43/C43) -> 0.3551831428
A44: 3-1-1-01-02-08 | B44: Aportes a la ESAP | C44: 64922000 | D44: 4721300 | E44: 23059200 | F44: 0.3551831428 | G44: 4721300 | H44: 23059200 | I44: =IF(C44=" 0"," ",+H44/C44) -> 0.3551831428
A45: 3-1-1-01-02-08-0001 | B45: Aportes a la ESAP de funcionarios | C45: 64922000 | D45: 4721300 | E45: 23059200 | F45: 0.3551831428 | G45: 4721300 | H45: 23059200 | I45: =IF(C45=" 0"," ",+H45/C45) -> 0.3551831428
A46: 3-1-1-01-02-09 | B46: Aportes a escuelas industriales e institutos técnicos | C46: 124656000 | D46: 9434200 | E46: 46070900 | F46: 0.369584296 | G46: 9434200 | H46: 46070900 | I46: =IF(C46=" 0"," ",+H46/C46) -> 0.369584296
A47: 3-1-1-01-02-09-0001 | B47: Aportes a escuelas industriales e institutos técnicos de funcionarios | C47: 124656000 | D47: 9434200 | E47: 46070900 | F47: 0.369584296 | G47: 9434200 | H47: 46070900 | I47: =IF(C47=" 0"," ",+H47/C47) -> 0.369584296
A48: 3-1-1-01-03 | B48: Remuneraciones no constitutivas de factor salarial | C48: 219399261 | D48: 24857399 | E48: 144736487 | F48: 0.6596945055 | G48: 25442113 | H48: 144736487 | I48: =IF(C48=" 0"," ",+H48/C48) -> 0.6596945055
A49: 3-1-1-01-03-02 | B49: Bonificación por recreación | C49: 40758000 | D49: 5952750 | E49: 19438629 | F49: 0.4769279405 | G49: 5984104 | H49: 19438629 | I49: =IF(C49=" 0"," ",+H49/C49) -> 0.4769279405
A50: 3-1-1-01-03-05 | B50: Reconocimiento por permanencia en el servicio público - Bogotá D.C. | C50: 92359000 | D50: 0 | E50: 75803978 | F50: 0.8207535595 | G50: 0 | H50: 75803978 | I50: =IF(C50=" 0"," ",+H50/C50) -> 0.8207535595
A51: 3-1-1-01-03-07 | B51: Reconocimiento por Coordinación | C51: 58688000 | D51: 4501996 | E51: 28872552 | F51: 0.4919668757 | G51: 4501996 | H51: 28872552 | I51: =IF(C51=" 0"," ",+H51/C51) -> 0.4919668757
A52: 3-1-1-02 | B52: Personal supernumerario y temporal | C52: 0 | D52: 0 | E52: 0 | F52: 0 | G52: 0 | H52: 0 | I52: 0
A53: 3-1-1-02-01 | B53: Factores constitutivos de salario | C53: 0 | D53: 0 | E53: 0 | F53: 0 | G53: 0 | H53: 0 | I53: 0
A54: 3-1-1-02-01-01 | B54: Factores salariales comunes | C54: 0 | D54: 0 | E54: 0 | F54: 0 | G54: 0 | H54: 0 | I54: 0
A55: 3-1-1-02-01-01-0001 | B55: Sueldo básico | C55: 0 | D55: 0 | E55: 0 | F55: 0 | G55: 0 | H55: 0 | I55: 0
A56: 3-1-1-02-01-02 | B56: Factores salariales especiales | C56: 0 | D56: 0 | E56: 0 | F56: 0 | G56: 0 | H56: 0 | I56: 0
A57: 3-1-1-02-01-02-0001 | B57: Prima de antigüedad | C57: 0 | D57: 0 | E57: 0 | F57: 0 | G57: 0 | H57: 0 | I57: 0
A58: 3-1-1-02-02 | B58: Contribuciones inherentes a la nómina | C58: 0 | D58: 0 | E58: 0 | F58: 0 | G58: 0 | H58: 0 | I58: 0
A59: 3-1-1-02-02-01 | B59: Aportes a la seguridad social en pensiones | C59: 0 | D59: 0 | E59: 0 | F59: 0 | G59: 0 | H59: 0 | I59: 0
A60: 3-1-1-02-02-01-0001 | B60: Aportes a la seguridad social en pensiones públicas | C60: 0 | D60: 0 | E60: 0 | F60: 0 | G60: 0 | H60: 0 | I60: 0
A61: 3-1-1-02-02-03 | B61: Aportes de cesantías | C61: 0 | D61: 0 | E61: 0 | F61: 0 | G61: 0 | H61: 0 | I61: 0
A62: 3-1-1-02-02-03-0001 | B62: Aportes de cesantías a fondos públicos | C62: 0 | D62: 0 | E62: 0 | F62: 0 | G62: 0 | H62: 0 | I62: 0
A63: 3-1-1-02-02-04 | B63: Aportes a cajas de compensación familiar | C63: 0 | D63: 0 | E63: 0 | F63: 0 | G63: 0 | H63: 0 | I63: 0
A64: 3-1-1-02-02-04-0001 | B64: Compensar | C64: 0 | D64: 0 | E64: 0 | F64: 0 | G64: 0 | H64: 0 | I64: 0
A65: 3-1-2 | B65: Adquisición de bienes y servicios | C65: 3742675000 | D65: 36286378 | E65: 3140912284 | F65: 0.8392158774 | G65: 359956209 | H65: 1351674487 | I65: =IF(C65=" 0"," ",+H65/C65) -> 0.3611519801
A66: 3-1-2-02 | B66: Adquisiciones diferentes de activos no financieros | C66: 3742675000 | D66: 36286378 | E66: 3140912284 | F66: 0.8392158774 | G66: 359956209 | H66: 1351674487 | I66: =IF(C66=" 0"," ",+H66/C66) -> 0.3611519801
A67: 3-1-2-02-01 | B67: Materiales y suministros | C67: 153510372 | D67: 0 | E67: 143430398 | F67: 0.9343368538 | G67: 20263636 | H67: 27179899 | I67: =IF(C67=" 0"," ",+H67/C67) -> 0.1770557823
A68: 3-1-2-02-01-01 | B68: Productos alimenticios, bebidas y tabaco; textiles, prendas de vestir y productos de cuero | C68: 1129000 | D68: 0 | E68: 1129000 | F68: 1 | G68: 0 | H68: 23205 | I68: =IF(C68=" 0"," ",+H68/C68) -> 0.02055358725
A69: 3-1-2-02-01-01-0005 | B69: Artículos textiles (excepto prendas de vestir) | C69: 1129000 | D69: 0 | E69: 1129000 | F69: 1 | G69: 0 | H69: 23205 | I69: =IF(C69=" 0"," ",+H69/C69) -> 0.02055358725
A70: 3-1-2-02-01-01-0006 | B70: Dotación (prendas de vestir y calzado) | C70: 0 | D70: 0 | E70: 0 | F70: 0 | G70: 0 | H70: 0 | I70: 0
A71: 3-1-2-02-01-02 | B71: Otros bienes transportables (excepto productos metálicos, maquinaria y equipo | C71: 102712026 | D71: 0 | E71: 94632052 | F71: 0.9213337102 | G71: 11417410 | H71: 16316216 | I71: =IF(C71=" 0"," ",+H71/C71) -> 0.1588539983
A72: 3-1-2-02-01-02-0002 | B72: Pasta o pulpa, papel y productos de papel; impresos y artículos relacionados | C72: 25328000 | D72: 0 | E72: 23328000 | F72: 0.9210360076 | G72: 1661787 | H72: 3999344 | I72: =IF(C72=" 0"," ",+H72/C72) -> 0.1579020846
A73: 3-1-2-02-01-02-0003 | B73: =VLOOKUP($A73,DATO1,2,0) -> Productos de hornos de coque, de refinación de petróleo y combustible | C73: 10816000 | D73: 0 | E73: 10816000 | F73: 1 | G73: 819612 | H73: 2269104 | I73: =IF(C73=" 0"," ",+H73/C73) -> 0.2097914201
A74: 3-1-2-02-01-02-0006 | B74: Productos de caucho y plástico | C74: 54733026 | D74: 0 | E74: 48653052 | F74: =+E74/C74 -> 0.8889158074 | G74: 5873781 | H74: 5873781 | I74: =IF(C74=" 0"," ",+H74/C74) -> 0.1073169424
A75: 3-1-2-02-01-02-0008 | B75: Muebles; otros bienes transportables n.c.p. | C75: 11835000 | D75: 0 | E75: 11835000 | F75: 1 | G75: 3062230 | H75: 4173987 | I75: =IF(C75=" 0"," ",+H75/C75) -> 0.3526816223
A76: 3-1-2-02-01-03 | B76: Productos metálicos | C76: 49669346 | D76: 0 | E76: 47669346 | F76: 0.9597337158 | G76: 8846226 | H76: 10840478 | I76: =IF(C76=" 0"," ",+H76/C76) -> 0.2182528838
A77: 3-1-2-02-01-03-0002 | B77: Productos metálicos elaborados (excepto maquinaria y equipo) | C77: 4777000 | D77: 0 | E77: 3777000 | F77: 0.7906635964 | G77: 0 | H77: 0 | I77: =IF(C77=" 0"," ",+H77/C77) -> 0
A78: 3-1-2-02-01-03-0005 | B78: Maquinaria de oficina, contabilidad e informática | C78: 36340974 | D78: 0 | E78: 36340974 | F78: 1 | G78: 5783995 | H78: 7778247 | I78: =IF(C78=" 0"," ",+H78/C78) -> 0.2140351824
A79: 3-1-2-02-01-03-0006 | B79: Maquinaria y aparatos eléctricos | C79: 7551372 | D79: 0 | E79: 7551372 | F79: 1 | G79: 3062231 | H79: 3062231 | I79: =IF(C79=" 0"," ",+H79/C79) -> 0.4055198181
A80: 3-1-2-02-02 | B80: Adquisición de servicios | C80: 3589164628 | D80: 36286378 | E80: 2997481886 | F80: 0.8351475055 | G80: 339692573 | H80: 1324494588 | I80: =IF(C80=" 0"," ",+H80/C80) -> 0.3690258668
A81: 3-1-2-02-02-02 | B81: Servicios financieros y servicios conexos, servicios inmobiliarios y servicios de leasing | C81: 895545496 | D81: 2595982 | E81: 750860216 | F81: 0.8384389396 | G81: 23168640 | H81: 279903846 | I81: =IF(C81=" 0"," ",+H81/C81) -> 0.3125512297
A82: 3-1-2-02-02-02-0001 | B82: Servicios financieros y servicios conexos | C82: 124146000 | D82: 195982 | E82: 101289210 | F82: 0.8158878256 | G82: 195982 | H82: 100456617 | I82: =IF(C82=" 0"," ",+H82/C82) -> 0.8091812624
A83: 3-1-2-02-02-02-0001-007 | B83: Servicios de seguros de vehículos automotores | C83: 6959000 | D83: 0 | E83: 5802040 | F83: 0.8337462279 | G83: 0 | H83: 5802040 | I83: =IF(C83=" 0"," ",+H83/C83) -> 0.8337462279
A84: 3-1-2-02-02-02-0001-009 | B84: Servicios de seguros generales de responsabilidad civil | C84: 88506000 | D84: 0 | E84: 73791541 | F84: 0.833746198 | G84: 0 | H84: 73791541 | I84: =IF(C84=" 0"," ",+H84/C84) -> 0.833746198
A85: 3-1-2-02-02-02-0001-010 | B85: Servicios de seguro obligatorio de accidentes de tránsito (SOAT) | C85: 673000 | D85: 0 | E85: 673000 | F85: 1 | G85: 0 | H85: 673000 | I85: =IF(C85=" 0"," ",+H85/C85) -> 1
A86: 3-1-2-02-02-02-0001-011 | B86: Servicios de administración de fondos de pensiones y cesantías | C86: 3175000 | D86: 195982 | E86: 998549 | F86: 0.314503622 | G86: 195982 | H86: 998549 | I86: =IF(C86=" 0"," ",+H86/C86) -> 0.314503622
A87: 3-1-2-02-02-02-0001-012 | B87: Otros servicios de seguros distintos de los seguros de vida n.c.p. | C87: 24833000 | D87: 0 | E87: 20024080 | F87: 0.8063496154 | G87: 0 | H87: 19191487 | I87: =IF(C87=" 0"," ",+H87/C87) -> 0.7728219305
A88: 3-1-2-02-02-02-0002 | B88: Servicios inmobiliarios | C88: 589611992 | D88: 0 | E88: 589426502 | F88: 0.9996854033 | G88: 20572658 | H88: 142507725 | I88: =IF(C88=" 0"," ",+H88/C88) -> 0.241697467
A89: 3-1-2-02-02-02-0002-001 | B89: Servicios de alquiler o arrendamiento con o sin opción de compra relativos a bienes inmuebles no residenciales propios o arrendados | C89: 589611992 | D89: 0 | E89: 589426502 | F89: 0.9996854033 | G89: 20572658 | H89: 142507725 | I89: =IF(C89=" 0"," ",+H89/C89) -> 0.241697467
A90: 3-1-2-02-02-02-0003 | B90: Servicios de arrendamiento o alquiler sin operario | C90: 181787504 | D90: 2400000 | E90: 60144504 | F90: 0.3308505958 | G90: 2400000 | H90: 36939504 | I90: =IF(C90=" 0"," ",+H90/C90) -> 0.2032015578
A91: 3-1-2-02-02-02-0003-001 | B91: =VLOOKUP($A91,DATO1,2,0) -> Servicios de arrendamiento o alquiler de automóviles y furgonetas sin operario | C91: 0 | D91: 0 | E91: 0 | F91: 0 | G91: 0 | H91: 0 | I91: 0
A92: 3-1-2-02-02-03 | B92: Servicios prestados a las empresas y servicios de producción | C92: 1715539846 | D92: 7942016 | E92: 1432198754 | F92: 0.8348385246 | G92: 250281997 | H92: 772790238 | I92: =IF(C92=" 0"," ",+H92/C92) -> 0.4504647559
A93: 3-1-2-02-02-03-0002 | B93: Servicios jurídicos y contables | C93: 4600000 | D93: 879648 | E93: 1319472 | F93: 0.2868417391 | G93: 879648 | H93: 1319472 | I93: =IF(C93=" 0"," ",+H93/C93) -> 0.2868417391
A94: 3-1-2-02-02-03-0002-001 | B94: Servicios de documentación y certificación jurídica | C94: 4600000 | D94: 879648 | E94: 1319472 | F94: 0.2868417391 | G94: 879648 | H94: 1319472 | I94: =IF(C94=" 0"," ",+H94/C94) -> 0.2868417391
A95: 3-1-2-02-02-03-0003 | B95: Otros servicios profesionales, científicos y técnicos | C95: 250000000 | D95: 0 | E95: 120254395 | F95: 0.48101758 | G95: 16801624 | H95: 34906624 | I95: =IF(C95=" 0"," ",+H95/C95) -> 0.139626496
A96: 3-1-2-02-02-03-0003-001 | B96: Servicios de consultoría en administración y servicios de gestión; servicios de tecnología de la información | C96: 0 | D96: 0 | E96: 0 | F96: 0 | G96: 0 | H96: 0 | I96: 0
A97: 3-1-2-02-02-03-0003-013 | B97: Otros servicios profesionales y técnicos n.c.p. | C97: 240000000 | D97: 0 | E97: 115902900 | F97: 0.48292875 | G97: 16439000 | H97: 34544000 | I97: =IF(C97=" 0"," ",+H97/C97) -> 0.1439333333
A98: 3-1-2-02-02-03-0004 | B98: Servicios de telecomunicaciones, transmisión y suministro de información | C98: 221191000 | D98: 6062368 | E98: 142560575 | F98: 0.6445134522 | G98: 14903378 | H98: 75368449 | I98: =IF(C98=" 0"," ",+H98/C98) -> 0.3407392209
A99: 3-1-2-02-02-03-0004-001 | B99: Servicios de telefonía fija | C99: 51000000 | D99: 3103090 | E99: 18615910 | F99: 0.3650178431 | G99: 3103090 | H99: 18615910 | I99: =IF(C99=" 0"," ",+H99/C99) -> 0.3650178431
A100: 3-1-2-02-02-03-0004-002 | B100: Servicios de telecomunicaciones móviles | C100: 44100000 | D100: 2959278 | E100: 17852545 | F100: 0.4048196145 | G100: 2959278 | H100: 17852545 | I100: =IF(C100=" 0"," ",+H100/C100) -> 0.4048196145
A101: 3-1-2-02-02-03-0004-004 | B101: Servicios de telecomunicaciones a través de internet | C101: 121091000 | D101: 0 | E101: 106092120 | F101: 0.8761354684 | G101: 8841010 | H101: 38899994 | I101: =IF(C101=" 0"," ",+H101/C101) -> 0.3212459555
A102: 3-1-2-02-02-03-0004-007 | B102: Servicios de transmisión de programas de radio y televisión | C102: 5000000 | D102: 0 | E102: 0 | F102: 0 | G102: 0 | H102: 0 | I102: =IF(C102=" 0"," ",+H102/C102) -> 0
A103: 3-1-2-02-02-03-0005 | B103: Servicios de soporte | C103: 794248230 | D103: 1000000 | E103: 733199016 | F103: 0.9231358514 | G103: 64492583 | H103: 269750672 | I103: =IF(C103=" 0"," ",+H103/C103) -> 0.3396301834
A104: 3-1-2-02-02-03-0005-001 | B104: Servicios de protección (guardas de seguridad) | C104: 491796764 | D104: 0 | E104: 458341200 | F104: 0.9319727854 | G104: 40492583 | H104: 136684752 | I104: =IF(C104=" 0"," ",+H104/C104) -> 0.277929344
A105: 3-1-2-02-02-03-0005-002 | B105: =VLOOKUP($A105,DATO1,2,0) -> Servicios de limpieza general | C105: 259411466 | D105: 0 | E105: 235817816 | F105: 0.909049317 | G105: 24000000 | H105: 113306875 | I105: =IF(C105=" 0"," ",+H105/C105) -> 0.4367843748
A106: 3-1-2-02-02-03-0005-004 | B106: Servicios de correo | C106: 0 | D106: 0 | E106: 0 | F106: 0 | G106: 0 | H106: 0 | I106: 0
A107: 3-1-2-02-02-03-0005-006 | B107: Servicios de organización y asistencia de convenciones y ferias | C107: 42040000 | D107: 1000000 | E107: 39040000 | F107: 0.9286393911 | G107: 0 | H107: 19759045 | I107: =IF(C107=" 0"," ",+H107/C107) -> 0.4700058278
A108: 3-1-2-02-02-03-0005-007 | B108: Otros servicios de apoyo y de información no clasificados previamente | C108: 0 | D108: 0 | E108: 0 | F108: 0 | G108: 0 | H108: 0 | I108: 0
A109: 3-1-2-02-02-03-0006 | B109: Servicios de mantenimiento, reparación e instalación (excepto servicios de construcción) | C109: 445500616 | D109: 0 | E109: 434865296 | F109: 0.9761272608 | G109: 153204764 | H109: 391445021 | I109: =IF(C109=" 0"," ",+H109/C109) -> 0.8786632542
A110: 3-1-2-02-02-03-0006-003 | B110: Servicios de mantenimiento y reparación de computadores y equipo periférico | C110: 10000000 | D110: 0 | E110: 0 | F110: 0 | G110: 0 | H110: 0 | I110: =IF(C110=" 0"," ",+H110/C110) -> 0
A111: 3-1-2-02-02-03-0006-012 | B111: Servicios de reparación de otros bienes | C111: 413697616 | D111: 0 | E111: 413697616 | F111: 1 | G111: 153204764 | H111: 381402578 | I111: =IF(C111=" 0"," ",+H111/C111) -> 0.9219356439
A112: 3-1-2-02-02-03-0007 | B112: Otros servicios de fabricación; servicios de edición, impresión y reproducción; servicios de recuperación de materiales | C112: 0 | D112: 0 | E112: 0 | F112: 0 | G112: 0 | H112: 0 | I112: 0
A113: 3-1-2-02-02-03-0007-002 | B113: Servicios de impresión | C113: 0 | D113: 0 | E113: 0 | F113: 0 | G113: 0 | H113: 0 | I113: 0
A114: 3-1-2-02-02-04 | B114: Servicios administrativos del Gobierno | C114: 142000000 | D114: 11748380 | E114: 66732120 | F114: 0.469944507 | G114: 11748380 | H114: 66732120 | I114: =IF(C114=" 0"," ",+H114/C114) -> 0.469944507
A115: 3-1-2-02-02-04-0001 | B115: Otros servicios públicos generales del Gobierno n.c.p. | C115: 142000000 | D115: 11748380 | E115: 66732120 | F115: 0.469944507 | G115: 11748380 | H115: 66732120 | I115: =IF(C115=" 0"," ",+H115/C115) -> 0.469944507
A116: 3-1-2-02-02-04-0001-001 | B116: Energía | C116: 108000000 | D116: 8657060 | E116: 58948410 | F116: 0.5458186111 | G116: 8657060 | H116: 58948410 | I116: =IF(C116=" 0"," ",+H116/C116) -> 0.5458186111
A117: 3-1-2-02-02-04-0001-002 | B117: Acueducto y alcantarillado | C117: 24000000 | D117: 2350100 | E117: 5590360 | F117: 0.2329316667 | G117: 2350100 | H117: 5590360 | I117: =IF(C117=" 0"," ",+H117/C117) -> 0.2329316667
A118: 3-1-2-02-02-04-0001-003 | B118: Aseo | C118: 10000000 | D118: 741220 | E118: 2193350 | F118: 0.219335 | G118: 741220 | H118: 2193350 | I118: =IF(C118=" 0"," ",+H118/C118) -> 0.219335
A119: 3-1-2-02-02-05 | B119: Viáticos y gastos de viaje | C119: 0 | D119: 0 | E119: 0 | F119: 0 | G119: 0 | H119: 0 | I119: 0
A120: 3-1-2-02-02-06 | B120: Capacitación | C120: 39856000 | D120: 2000000 | E120: 39856000 | F120: 1 | G120: 0 | H120: 0 | I120: =IF(C120=" 0"," ",+H120/C120) -> 0
A121: 3-1-2-02-02-07 | B121: Bienestar e incentivos | C121: 104932039 | D121: 8000000 | E121: 104932039 | F121: 1 | G121: 8530504 | H121: 14503036 | I121: =IF(C121=" 0"," ",+H121/C121) -> 0.1382136108
A122: 3-1-2-02-02-08 | B122: Salud Ocupacional | C122: 57136720 | D122: 4000000 | E122: 57136720 | F122: 1 | G122: 20500 | H122: 1194827 | I122: =IF(C122=" 0"," ",+H122/C122) -> 0.02091171842
A123: 3-3 | B123: INVERSIÓN | C123: 178561625000 | D123: 8147313758 | E123: 83349644504 | F123: 0.4667836356 | G123: 14316308450 | H123: 33045512675 | I123: =IF(C123=" 0"," ",+H123/C123) -> 0.1850650311
A124: 3-3-1 | B124: DIRECTA | C124: 178561625000 | D124: 8147313758 | E124: 83349644504 | F124: 0.4667836356 | G124: 14316308450 | H124: 33045512675 | I124: =IF(C124=" 0"," ",+H124/C124) -> 0.1850650311
A125: 3-3-1-15 | B125: Bogotá Mejor Para Todos | C125: 178561625000 | D125: 8147313758 | E125: 83349644504 | F125: 0.4667836356 | G125: 14316308450 | H125: 33045512675 | I125: =IF(C125=" 0"," ",+H125/C125) -> 0.1850650311
A126: 3-3-1-15-01 | B126: Pilar Igualdad de calidad de vida | C126: 43913124766 | D126: 545459428 | E126: 37456373438 | F126: 0.8529653409 | G126: 679726998 | H126: 15588426421 | I126: =IF(C126=" 0"," ",+H126/C126) -> 0.3549833109
A127: 3-3-1-15-01-11 | B127: Mejores oportunidades para el desarrollo a través de la cultura, la recreación y el deporte | C127: 43913124766 | D127: 545459428 | E127: 37456373438 | F127: 0.8529653409 | G127: 679726998 | H127: 15588426421 | I127: =IF(C127=" 0"," ",+H127/C127) -> 0.3549833109
A128: 3-3-1-15-01-11-0997 | B128: Fortalecimiento de los procesos y de agentes de formación del sector | C128: 644708933 | D128: 127900000 | E128: 488708933 | F128: 0.758030342 | G128: 34784000 | H128: 122489500 | I128: =IF(C128=" 0"," ",+H128/C128) -> 0.1899919386
A129: 3-3-1-15-01-11-0997-124 | B129: Formación para la transformación del ser | C129: 644708933 | D129: 127900000 | E129: 488708933 | F129: 0.758030342 | G129: 34784000 | H129: 122489500 | I129: =IF(C129=" 0"," ",+H129/C129) -> 0.1899919386
A130: 3-3-1-15-01-11-1008 | B130: Fomento y gestión para el desarrollo cultural | C130: 9773000000 | D130: 320160428 | E130: 3547895622 | F130: 0.3630303512 | G130: 308785221 | H130: 1495927697 | I130: =IF(C130=" 0"," ",+H130/C130) -> 0.1530673997
A131: 3-3-1-15-01-11-1008-126 | B131: Política de emprendimiento e industrias culturales y creativas | C131: 593508000 | D131: 0 | E131: 593508000 | F131: 1 | G131: 54109000 | H131: 234168300 | I131: =IF(C131=" 0"," ",+H131/C131) -> 0.3945495259
A132: 3-3-1-15-01-11-1008-127 | B132: Programa de estímulos | C132: 9179492000 | D132: 320160428 | E132: 2954387622 | F132: 0.3218465272 | G132: 254676221 | H132: 1261759397 | I132: =IF(C132=" 0"," ",+H132/C132) -> 0.1374541638
A133: 3-3-1-15-01-11-1011 | B133: Lectura, escritura y redes de conocimiento | C133: 33495415833 | D133: 97399000 | E133: 33419768883 | F133: 0.997741573 | G133: 336157777 | H133: 13970009224 | I133: =IF(C133=" 0"," ",+H133/C133) -> 0.4170722732
A134: 3-3-1-15-01-11-1011-125 | B134: Plan Distrital de lectura y escritura | C134: 33495415833 | D134: 97399000 | E134: 33419768883 | F134: 0.997741573 | G134: 336157777 | H134: 13970009224 | I134: =IF(C134=" 0"," ",+H134/C134) -> 0.4170722732
A135: 3-3-1-15-02 | B135: Pilar Democracia urbana | C135: 122147812207 | D135: 6419475009 | E135: 36224075744 | F135: 0.2965593496 | G135: 11871788272 | H135: 12987263017 | I135: =IF(C135=" 0"," ",+H135/C135) -> 0.1063241558
A136: 3-3-1-15-02-17 | B136: Espacio público, derecho de todos | C136: 122147812207 | D136: 6419475009 | E136: 36224075744 | F136: 0.2965593496 | G136: 11871788272 | H136: 12987263017 | I136: =IF(C136=" 0"," ",+H136/C136) -> 0.1063241558
A137: 3-3-1-15-02-17-0992 | B137: =VLOOKUP($A137,DATO1,2,0) -> Patrimonio e Infraestructura cultural fortalecida | C137: 122147812207 | D137: 6419475009 | E137: 36224075744 | F137: 0.2965593496 | G137: 11871788272 | H137: 12987263017 | I137: =IF(C137=" 0"," ",+H137/C137) -> 0.1063241558
A138: 3-3-1-15-02-17-0992-139 | B138: Gestión de infraestructura cultural y deportiva nueva, rehabilitada y recuperada | C138: 122147812207 | D138: 6419475009 | E138: 36224075744 | F138: =+E138/C138 -> 0.2965593496 | G138: 11871788272 | H138: 12987263017 | I138: =IF(C138=" 0"," ",+H138/C138) -> 0.1063241558
A139: 3-3-1-15-03 | B139: Pilar Construcción de comunidad y cultura ciudadana | C139: 5493259835 | D139: 636146388 | E139: 2785171240 | F139: 0.5070161113 | G139: 231638633 | H139: 706655918 | I139: =IF(C139=" 0"," ",+H139/C139) -> 0.1286405412
A140: 3-3-1-15-03-25 | B140: Cambio cultural y construcción del tejido social para la vida | C140: 5493259835 | D140: 636146388 | E140: 2785171240 | F140: 0.5070161113 | G140: 231638633 | H140: 706655918 | I140: =IF(C140=" 0"," ",+H140/C140) -> 0.1286405412
A141: 3-3-1-15-03-25-0987 | B141: Saberes sociales para la cultura ciudadana y la transformación cultural | C141: 3085166834 | D141: 159794361 | E141: 1687663528 | F141: 0.5470250456 | G141: 151721167 | H141: 484359667 | I141: =IF(C141=" 0"," ",+H141/C141) -> 0.1569962641
A142: 3-3-1-15-03-25-0987-156 | B142: Cultura ciudadana para la convivencia | C142: 3085166834 | D142: 159794361 | E142: 1687663528 | F142: 0.5470250456 | G142: 151721167 | H142: 484359667 | I142: =IF(C142=" 0"," ",+H142/C142) -> 0.1569962641
A143: 3-3-1-15-03-25-1016 | B143: Poblaciones diversas e interculturales | C143: 749000000 | D143: 240852027 | E143: 350030877 | F143: 0.4673309439 | G143: 17374000 | H143: 34598250 | I143: =IF(C143=" 0"," ",+H143/C143) -> 0.04619259012
A144: 3-3-1-15-03-25-1016-157 | B144: Intervención integral en territorios y poblaciones priorizadas a través de cultura, recreación y deporte | C144: 749000000 | D144: 240852027 | E144: 350030877 | F144: 0.4673309439 | G144: 17374000 | H144: 34598250 | I144: =IF(C144=" 0"," ",+H144/C144) -> 0.04619259012
A145: 3-3-1-15-03-25-1137 | B145: Comunidades culturales para la paz | C145: 1659093001 | D145: 235500000 | E145: 747476835 | F145: 0.4505334147 | G145: 62543466 | H145: 187698001 | I145: =IF(C145=" 0"," ",+H145/C145) -> 0.1131328991
A146: 3-3-1-15-03-25-1137-157 | B146: Intervención integral en territorios y poblaciones priorizadas a través de cultura, recreación y deporte | C146: 1659093001 | D146: 235500000 | E146: 747476835 | F146: 0.4505334147 | G146: 62543466 | H146: 187698001 | I146: =IF(C146=" 0"," ",+H146/C146) -> 0.1131328991
A147: 3-3-1-15-07 | B147: Eje transversal Gobierno legítimo, fortalecimiento local y eficiencia | C147: 7007428192 | D147: 546232933 | E147: 6884024082 | F147: 0.9823895291 | G147: 1533154547 | H147: 3763167319 | I147: =IF(C147=" 0"," ",+H147/C147) -> 0.5370254558
A148: 3-3-1-15-07-42 | B148: Transparencia, gestión pública y servicio a la ciudadanía | C148: 2178059733 | D148: 544482933 | E148: 2150025666 | F148: 0.9871288805 | G148: 116284839 | H148: 562235237 | I148: =IF(C148=" 0"," ",+H148/C148) -> 0.2581358208
A149: 3-3-1-15-07-42-1009 | B149: Transparencia y gestión pública para todos | C149: 2178059733 | D149: 544482933 | E149: 2150025666 | F149: 0.9871288805 | G149: 116284839 | H149: 562235237 | I149: =IF(C149=" 0"," ",+H149/C149) -> 0.2581358208
A150: 3-3-1-15-07-42-1009-185 | B150: Fortalecimiento a la gestión pública efectiva y eficiente | C150: 2178059733 | D150: 544482933 | E150: 2150025666 | F150: 0.9871288805 | G150: 116284839 | H150: 562235237 | I150: =IF(C150=" 0"," ",+H150/C150) -> 0.2581358208
A151: 3-3-1-15-07-43 | B151: Modernización institucional | C151: 1435328959 | D151: 1750000 | E151: 1403954716 | F151: 0.9781414269 | G151: 141081225 | H151: 429596791 | I151: =IF(C151=" 0"," ",+H151/C151) -> 0.2993019742
A152: 3-3-1-15-07-43-1012 | B152: =Plano!B164 -> Fortalecimiento a la Gestión | C152: 1435328959 | D152: 1750000 | E152: 1403954716 | F152: 0.9781414269 | G152: 141081225 | H152: 429596791 | I152: =IF(C152=" 0"," ",+H152/C152) -> 0.2993019742
A153: 3-3-1-15-07-43-1012-189 | B153: =Plano!B165 -> Modernización administrativa | C153: 1435328959 | D153: 1750000 | E153: 1403954716 | F153: 0.9781414269 | G153: 141081225 | H153: 429596791 | I153: =IF(C153=" 0"," ",+H153/C153) -> 0.2993019742
A154: 3-3-1-15-07-44 | B154: =Plano!B166 -> Gobierno y ciudadanía digital | C154: 581219500 | D154: 0 | E154: 517223700 | F154: 0.8898939213 | G154: 46851000 | H154: 171220333 | I154: =IF(C154=" 0"," ",+H154/C154) -> 0.2945880739
A155: 3-3-1-15-07-44-1007 | B155: =Plano!B167 -> Información y ciudadanía digital para todos | C155: 581219500 | D155: 0 | E155: 517223700 | F155: 0.8898939213 | G155: 46851000 | H155: 171220333 | I155: =IF(C155=" 0"," ",+H155/C155) -> 0.2945880739
A156: 3-3-1-15-07-44-1007-192 | B156: =Plano!B168 -> Fortalecimiento institucional a través del uso de TIC | C156: 581219500 | D156: 0 | E156: 517223700 | F156: 0.8898939213 | G156: 46851000 | H156: 171220333 | I156: =IF(C156=" 0"," ",+H156/C156) -> 0.2945880739
A157: 3-3-1-15-07-45 | B157: =Plano!B169 -> Gobernanza e influencia local, regional e internacional | C157: 2812820000 | D157: 0 | E157: 2812820000 | F157: 1 | G157: 1228937483 | H157: 2600114958 | I157: =IF(C157=" 0"," ",+H157/C157) -> 0.9243801445
A158: 3-3-1-15-07-45-1018 | B158: =Plano!B170 -> Participación para la democracia cultural, recreativa y deportiva | C158: 2812820000 | D158: 0 | E158: 2812820000 | F158: 1 | G158: 1228937483 | H158: 2600114958 | I158: =IF(C158=" 0"," ",+H158/C158) -> 0.9243801445
A159: 3-3-1-15-07-45-1018-196 | B159: =Plano!B171 -> Fortalecimiento local, gobernabilidad, gobernanza y participación ciudadana | C159: 2812820000 | D159: 0 | E159: 2812820000 | F159: 1 | G159: 1228937483 | H159: 2600114958 | I159: =IF(C159=" 0"," ",+H159/C159) -> 0.9243801445

Sheet Plano
A1: SISTEMA DE PRESUPUESTO DISTRITAL
A2: EJECUCION DE GASTOS
A3: COMPANIA 119
A4: UNIDAD_EJECUTORA 01
A5: VIGENCIA 2019
A6: MES 6
A7: 3 | B7: GASTOS | C7: 198543492000 | D7: 2850000000 | E7: 2850000000 | F7: 201393492000 | G7: ,00 | H7: 201393492000 | I7: 10481347290 | J7: 94671174465 | K7: 47,01 | L7: 16982303921 | M7: 42501754081 | N7: 21,10
A8: 3-1 | B8: GASTOS DE FUNCIONAMIENTO | C8: 22831867000 | D8: ,00 | E8: ,00 | F8: 22831867000 | G8: ,00 | H8: 22831867000 | I8: 2334033532 | J8: 11321529961 | K8: 49,59 | L8: 2665995471 | M8: 9456241406 | N8: 41,42
A9: 3-1-1 | B9: Gastos de personal | C9: 19088692000 | D9: ,00 | E9: ,00 | F9: 19088692000 | G9: ,00 | H9: 19088692000 | I9: 2297747154 | J9: 8180617677 | K9: 42,86 | L9: 2306039262 | M9: 8104566919 | N9: 42,46
A10: 3-1-1-01 | B10: Planta de personal permanente | C10: 9895130000 | D10: ,00 | E10: 9193562000 | F10: 19088692000 | G10: ,00 | H10: 19088692000 | I10: 2297747154 | J10: 8180617677 | K10: 42,86 | L10: 2306039262 | M10: 8104566919 | N10: 42,46
A11: 3-1-1-01-01 | B11: Factores constitutivos de salario | C11: 6576374000 | D11: ,00 | E11: 7433272739 | F11: 14009646739 | G11: ,00 | H11: 14009646739 | I11: 1989464376 | J11: 6629731601 | K11: 47,32 | L11: 1995868847 | M11: 6553680843 | N11: 46,78
A12: 3-1-1-01-01-01 | B12: Factores salariales comunes | C12: 2688090000 | D12: ,00 | E12: 7283427739 | F12: 9971517739 | G12: ,00 | H12: 9971517739 | I12: 753538759 | J12: 4361164051 | K12: 43,74 | L12: 757156002 | M12: 4285113293 | N12: 42,97
A13: 3-1-1-01-01-01-0001 | B13: Sueldo básico | C13: ,00 | D13: ,00 | E13: 7290228403 | F13: 7290228403 | G13: ,00 | H13: 7290228403 | I13: 616055680 | J13: 3608404437 | K13: 49,50 | L13: 618074240 | M13: 3532353679 | N13: 48,45
A14: 3-1-1-01-01-01-0004 | B14: Gastos de representación | C14: 771188000 | D14: ,00 | E14: ,00 | F14: 771188000 | G14: ,00 | H14: 771188000 | I14: 54456165 | J14: 344431451 | K14: 44,66 | L14: 54456165 | M14: 344431451 | N14: 44,66
A15: 3-1-1-01-01-01-0005 | B15: Horas Extras, Dominicales, Festivos, Recargo Nocturno y Trabajo Suplementario | C15: 83247000 | D15: ,00 | E15: -18800664 | F15: 64446336 | G15: ,00 | H15: 64446336 | I15: 1321407 | J15: 7977734 | K15: 12,38 | L15: 1321407 | M15: 7977734 | N15: 12,38
A16: 3-1-1-01-01-01-0006 | B16: Auxilio de transporte | C16: 1106000 | D16: ,00 | E16: ,00 | F16: 1106000 | G16: ,00 | H16: 1106000 | I16: 97032 | J16: 582192 | K16: 52,64 | L16: 97032 | M16: 582192 | N16: 52,64
A17: 3-1-1-01-01-01-0007 | B17: Subsidio de alimentación | C17: 755000 | D17: ,00 | E17: 12000000 | F17: 12755000 | G17: ,00 | H17: 12755000 | I17: 816097 | J17: 5129385 | K17: 40,21 | L17: 816097 | M17: 5129385 | N17: 40,21
A18: 3-1-1-01-01-01-0008 | B18: Bonificación por servicios prestados | C18: 240907000 | D18: ,00 | E18: ,00 | F18: 240907000 | G18: ,00 | H18: 240907000 | I18: 1548799 | J18: 141489791 | K18: 58,73 | L18: 1548799 | M18: 141489791 | N18: 58,73
A19: 3-1-1-01-01-01-0010 | B19: Prima de navidad | C19: 1074930000 | D19: ,00 | E19: ,00 | F19: 1074930000 | G19: ,00 | H19: 1074930000 | I19: 5344328 | J19: 9894547 | K19: ,92 | L19: 6582124 | M19: 9894547 | N19: ,92
A20: 3-1-1-01-01-01-0011 | B20: Prima de vacaciones | C20: 515957000 | D20: ,00 | E20: ,00 | F20: 515957000 | G20: ,00 | H20: 515957000 | I20: 73899251 | J20: 243254514 | K20: 47,15 | L20: 74260138 | M20: 243254514 | N20: 47,15
A21: 3-1-1-01-01-02 | B21: Factores salariales especiales | C21: 3888284000 | D21: ,00 | E21: 149845000 | F21: 4038129000 | G21: ,00 | H21: 4038129000 | I21: 1235925617 | J21: 2268567550 | K21: 56,18 | L21: 1238712845 | M21: 2268567550 | N21: 56,18
A22: 3-1-1-01-01-02-0001 | B22: Prima de antigüedad | C22: ,00 | D22: ,00 | E22: 149845000 | F22: 149845000 | G22: ,00 | H22: 149845000 | I22: 12309034 | J22: 78989447 | K22: 52,71 | L22: 12309034 | M22: 78989447 | N22: 52,71
A23: 3-1-1-01-01-02-0002 | B23: Prima Técnica | C23: 2699255000 | D23: ,00 | E23: ,00 | F23: 2699255000 | G23: ,00 | H23: 2699255000 | I23: 178174777 | J23: 1141349069 | K23: 42,28 | L23: 178174777 | M23: 1141349069 | N23: 42,28
A24: 3-1-1-01-01-02-0003 | B24: Prima Semestral | C24: 1189029000 | D24: ,00 | E24: ,00 | F24: 1189029000 | G24: ,00 | H24: 1189029000 | I24: 1045441806 | J24: 1048229034 | K24: 88,16 | L24: 1048229034 | M24: 1048229034 | N24: 88,16
A25: 3-1-1-01-02 | B25: Contribuciones inherentes a la nómina | C25: 3126951000 | D25: ,00 | E25: 1732695000 | F25: 4859646000 | G25: ,00 | H25: 4859646000 | I25: 283425379 | J25: 1406149589 | K25: 28,94 | L25: 284728302 | M25: 1406149589 | N25: 28,94
A26: 3-1-1-01-02-01 | B26: Aportes a la seguridad social en pensiones | C26: 772380000 | D26: ,00 | E26: 580662000 | F26: 1353042000 | G26: ,00 | H26: 1353042000 | I26: 103956041 | J26: 528319135 | K26: 39,05 | L26: 103956041 | M26: 528319135 | N26: 39,05
A27: 3-1-1-01-02-01-0001 | B27: Aportes a la seguridad social en pensiones públicas | C27: ,00 | D27: ,00 | E27: 580662000 | F27: 580662000 | G27: ,00 | H27: 580662000 | I27: 55878515 | J27: 291761960 | K27: 50,25 | L27: 55878515 | M27: 291761960 | N27: 50,25
A28: 3-1-1-01-02-01-0002 | B28: Aportes a la seguridad social en pensiones privadas | C28: 772380000 | D28: ,00 | E28: ,00 | F28: 772380000 | G28: ,00 | H28: 772380000 | I28: 48077526 | J28: 236557175 | K28: 30,63 | L28: 48077526 | M28: 236557175 | N28: 30,63
A29: 3-1-1-01-02-02 | B29: Aportes a la seguridad social en salud | C29: 958433000 | D29: ,00 | E29: ,00 | F29: 958433000 | G29: ,00 | H29: 958433000 | I29: 73402941 | J29: 373655735 | K29: 38,99 | L29: 73402941 | M29: 373655735 | N29: 38,99
A30: 3-1-1-01-02-02-0002 | B30: Aportes a la seguridad social en salud privada | C30: 958433000 | D30: ,00 | E30: ,00 | F30: 958433000 | G30: ,00 | H30: 958433000 | I30: 73402941 | J30: 373655735 | K30: 38,99 | L30: 73402941 | M30: 373655735 | N30: 38,99
A31: 3-1-1-01-02-03 | B31: Aportes de cesantías | C31: 693336000 | D31: ,00 | E31: 612791000 | F31: 1306127000 | G31: ,00 | H31: 1306127000 | I31: 15488497 | J31: 58587219 | K31: 4,49 | L31: 16791420 | M31: 58587219 | N31: 4,49
A32: 3-1-1-01-02-03-0001 | B32: Aportes de cesantías a fondos públicos | C32: ,00 | D32: ,00 | E32: 612791000 | F32: 612791000 | G32: ,00 | H32: 612791000 | I32: 11907510 | J32: 52837501 | K32: 8,62 | L32: 13210433 | M32: 52837501 | N32: 8,62
A33: 3-1-1-01-02-03-0002 | B33: Aportes de cesantías a fondos privados | C33: 693336000 | D33: ,00 | E33: ,00 | F33: 693336000 | G33: ,00 | H33: 693336000 | I33: 3580987 | J33: 5749718 | K33: ,83 | L33: 3580987 | M33: 5749718 | N33: ,83
A34: 3-1-1-01-02-04 | B34: Aportes a cajas de compensación familiar | C34: ,00 | D34: ,00 | E34: 519242000 | F34: 519242000 | G34: ,00 | H34: 519242000 | I34: 37703500 | J34: 184117000 | K34: 35,46 | L34: 37703500 | M34: 184117000 | N34: 35,46
A35: 3-1-1-01-02-04-0001 | B35: Compensar | C35: ,00 | D35: ,00 | E35: 519242000 | F35: 519242000 | G35: ,00 | H35: 519242000 | I35: 37703500 | J35: 184117000 | K35: 35,46 | L35: 37703500 | M35: 184117000 | N35: 35,46
A36: 3-1-1-01-02-05 | B36: Aportes generales al sistema de riesgos laborales | C36: 58864000 | D36: ,00 | E36: 20000000 | F36: 78864000 | G36: ,00 | H36: 78864000 | I36: 5716500 | J36: 31181400 | K36: 39,54 | L36: 5716500 | M36: 31181400 | N36: 39,54
A37: 3-1-1-01-02-05-0002 | B37: Aportes generales al sistema de riesgos laborales privados | C37: 58864000 | D37: ,00 | E37: 20000000 | F37: 78864000 | G37: ,00 | H37: 78864000 | I37: 5716500 | J37: 31181400 | K37: 39,54 | L37: 5716500 | M37: 31181400 | N37: 39,54
A38: 3-1-1-01-02-06 | B38: Aportes al ICBF | C38: 389438000 | D38: ,00 | E38: ,00 | F38: 389438000 | G38: ,00 | H38: 389438000 | I38: 28281100 | J38: 138099800 | K38: 35,46 | L38: 28281100 | M38: 138099800 | N38: 35,46
A39: 3-1-1-01-02-06-0001 | B39: Aportes al ICBF de funcionarios | C39: 389438000 | D39: ,00 | E39: ,00 | F39: 389438000 | G39: ,00 | H39: 389438000 | I39: 28281100 | J39: 138099800 | K39: 35,46 | L39: 28281100 | M39: 138099800 | N39: 35,46
A40: 3-1-1-01-02-07 | B40: Aportes al SENA | C40: 64922000 | D40: ,00 | E40: ,00 | F40: 64922000 | G40: ,00 | H40: 64922000 | I40: 4721300 | J40: 23059200 | K40: 35,52 | L40: 4721300 | M40: 23059200 | N40: 35,52
A41: 3-1-1-01-02-07-0001 | B41: Aportes al SENA de funcionarios | C41: 64922000 | D41: ,00 | E41: ,00 | F41: 64922000 | G41: ,00 | H41: 64922000 | I41: 4721300 | J41: 23059200 | K41: 35,52 | L41: 4721300 | M41: 23059200 | N41: 35,52
A42: 3-1-1-01-02-08 | B42: Aportes a la ESAP | C42: 64922000 | D42: ,00 | E42: ,00 | F42: 64922000 | G42: ,00 | H42: 64922000 | I42: 4721300 | J42: 23059200 | K42: 35,52 | L42: 4721300 | M42: 23059200 | N42: 35,52
A43: 3-1-1-01-02-08-0001 | B43: Aportes a la ESAP de funcionarios | C43: 64922000 | D43: ,00 | E43: ,00 | F43: 64922000 | G43: ,00 | H43: 64922000 | I43: 4721300 | J43: 23059200 | K43: 35,52 | L43: 4721300 | M43: 23059200 | N43: 35,52
A44: 3-1-1-01-02-09 | B44: Aportes a escuelas industriales e institutos técnicos | C44: 124656000 | D44: ,00 | E44: ,00 | F44: 124656000 | G44: ,00 | H44: 124656000 | I44: 9434200 | J44: 46070900 | K44: 36,96 | L44: 9434200 | M44: 46070900 | N44: 36,96
A45: 3-1-1-01-02-09-0001 | B45: Aportes a escuelas industriales e institutos técnicos de funcionarios | C45: 124656000 | D45: ,00 | E45: ,00 | F45: 124656000 | G45: ,00 | H45: 124656000 | I45: 9434200 | J45: 46070900 | K45: 36,96 | L45: 9434200 | M45: 46070900 | N45: 36,96
A46: 3-1-1-01-03 | B46: Remuneraciones no constitutivas de factor salarial | C46: 191805000 | D46: ,00 | E46: 27594261 | F46: 219399261 | G46: ,00 | H46: 219399261 | I46: 24857399 | J46: 144736487 | K46: 65,97 | L46: 25442113 | M46: 144736487 | N46: 65,97
A47: 3-1-1-01-03-01 | B47: Indemnización por vacaciones | C47: ,00 | D47: ,00 | E47: 27594261 | F47: 27594261 | G47: ,00 | H47: 27594261 | I47: 14402653 | J47: 20621328 | K47: 74,73 | L47: 14956013 | M47: 20621328 | N47: 74,73
A48: 3-1-1-01-03-02 | B48: Bonificación por recreación | C48: 40758000 | D48: ,00 | E48: ,00 | F48: 40758000 | G48: ,00 | H48: 40758000 | I48: 5952750 | J48: 19438629 | K48: 47,69 | L48: 5984104 | M48: 19438629 | N48: 47,69
A49: 3-1-1-01-03-05 | B49: Reconocimiento por permanencia en el servicio público - Bogotá D.C. | C49: 92359000 | D49: ,00 | E49: ,00 | F49: 92359000 | G49: ,00 | H49: 92359000 | I49: ,00 | J49: 75803978 | K49: 82,08 | L49: ,00 | M49: 75803978 | N49: 82,08
A50: 3-1-1-01-03-07 | B50: Reconocimiento por Coordinación | C50: 58688000 | D50: ,00 | E50: ,00 | F50: 58688000 | G50: ,00 | H50: 58688000 | I50: 4501996 | J50: 28872552 | K50: 49,20 | L50: 4501996 | M50: 28872552 | N50: 49,20
A51: 3-1-1-02 | B51: Personal supernumerario y temporal | C51: 9193562000 | D51: ,00 | E51: -9193562000 | F51: ,00 | G51: ,00 | H51: ,00 | I51: ,00 | J51: ,00 | K51: ,00 | L51: ,00 | M51: ,00 | N51: ,00
A52: 3-1-1-02-01 | B52: Factores constitutivos de salario | C52: 7480867000 | D52: ,00 | E52: -7480867000 | F52: ,00 | G52: ,00 | H52: ,00 | I52: ,00 | J52: ,00 | K52: ,00 | L52: ,00 | M52: ,00 | N52: ,00
A53: 3-1-1-02-01-01 | B53: Factores salariales comunes | C53: 7331022000 | D53: ,00 | E53: -7331022000 | F53: ,00 | G53: ,00 | H53: ,00 | I53: ,00 | J53: ,00 | K53: ,00 | L53: ,00 | M53: ,00 | N53: ,00
A54: 3-1-1-02-01-01-0001 | B54: Sueldo básico | C54: 7331022000 | D54: ,00 | E54: -7331022000 | F54: ,00 | G54: ,00 | H54: ,00 | I54: ,00 | J54: ,00 | K54: ,00 | L54: ,00 | M54: ,00 | N54: ,00
A55: 3-1-1-02-01-02 | B55: Factores salariales especiales | C55: 149845000 | D55: ,00 | E55: -149845000 | F55: ,00 | G55: ,00 | H55: ,00 | I55: ,00 | J55: ,00 | K55: ,00 | L55: ,00 | M55: ,00 | N55: ,00
A56: 3-1-1-02-01-02-0001 | B56: Prima de antigüedad | C56: 149845000 | D56: ,00 | E56: -149845000 | F56: ,00 | G56: ,00 | H56: ,00 | I56: ,00 | J56: ,00 | K56: ,00 | L56: ,00 | M56: ,00 | N56: ,00
A57: 3-1-1-02-02 | B57: Contribuciones inherentes a la nómina | C57: 1712695000 | D57: ,00 | E57: -1712695000 | F57: ,00 | G57: ,00 | H57: ,00 | I57: ,00 | J57: ,00 | K57: ,00 | L57: ,00 | M57: ,00 | N57: ,00
A58: 3-1-1-02-02-01 | B58: Aportes a la seguridad social en pensiones | C58: 580662000 | D58: ,00 | E58: -580662000 | F58: ,00 | G58: ,00 | H58: ,00 | I58: ,00 | J58: ,00 | K58: ,00 | L58: ,00 | M58: ,00 | N58: ,00
A59: 3-1-1-02-02-01-0001 | B59: Aportes a la seguridad social en pensiones públicas | C59: 580662000 | D59: ,00 | E59: -580662000 | F59: ,00 | G59: ,00 | H59: ,00 | I59: ,00 | J59: ,00 | K59: ,00 | L59: ,00 | M59: ,00 | N59: ,00
A60: 3-1-1-02-02-03 | B60: Aportes de cesantías | C60: 612791000 | D60: ,00 | E60: -612791000 | F60: ,00 | G60: ,00 | H60: ,00 | I60: ,00 | J60: ,00 | K60: ,00 | L60: ,00 | M60: ,00 | N60: ,00
A61: 3-1-1-02-02-03-0001 | B61: Aportes de cesantías a fondos públicos | C61: 612791000 | D61: ,00 | E61: -612791000 | F61: ,00 | G61: ,00 | H61: ,00 | I61: ,00 | J61: ,00 | K61: ,00 | L61: ,00 | M61: ,00 | N61: ,00
A62: 3-1-1-02-02-04 | B62: Aportes a cajas de compensación familiar | C62: 519242000 | D62: ,00 | E62: -519242000 | F62: ,00 | G62: ,00 | H62: ,00 | I62: ,00 | J62: ,00 | K62: ,00 | L62: ,00 | M62: ,00 | N62: ,00
A63: 3-1-1-02-02-04-0001 | B63: Compensar | C63: 519242000 | D63: ,00 | E63: -519242000 | F63: ,00 | G63: ,00 | H63: ,00 | I63: ,00 | J63: ,00 | K63: ,00 | L63: ,00 | M63: ,00 | N63: ,00
A64: 3-1-2 | B64: Adquisición de bienes y servicios | C64: 3743175000 | D64: ,00 | E64: -500000 | F64: 3742675000 | G64: ,00 | H64: 3742675000 | I64: 36286378 | J64: 3140912284 | K64: 83,92 | L64: 359956209 | M64: 1351674487 | N64: 36,12
A65: 3-1-2-02 | B65: Adquisiciones diferentes de activos no financieros | C65: 3743175000 | D65: ,00 | E65: -500000 | F65: 3742675000 | G65: ,00 | H65: 3742675000 | I65: 36286378 | J65: 3140912284 | K65: 83,92 | L65: 359956209 | M65: 1351674487 | N65: 36,12
A66: 3-1-2-02-01 | B66: Materiales y suministros | C66: 151010000 | D66: ,00 | E66: 2500372 | F66: 153510372 | G66: ,00 | H66: 153510372 | I66: ,00 | J66: 143430398 | K66: 93,43 | L66: 20263636 | M66: 27179899 | N66: 17,71
A67: 3-1-2-02-01-01 | B67: Productos alimenticios, bebidas y tabaco; textiles, prendas de vestir y productos de cuero | C67: 1729000 | D67: ,00 | E67: -600000 | F67: 1129000 | G67: ,00 | H67: 1129000 | I67: ,00 | J67: 1129000 | K67: 100,00 | L67: ,00 | M67: 23205 | N67: 2,06
A68: 3-1-2-02-01-01-0005 | B68: Artículos textiles (excepto prendas de vestir) | C68: 1129000 | D68: ,00 | E68: ,00 | F68: 1129000 | G68: ,00 | H68: 1129000 | I68: ,00 | J68: 1129000 | K68: 100,00 | L68: ,00 | M68: 23205 | N68: 2,06
A69: 3-1-2-02-01-01-0006 | B69: Dotación (prendas de vestir y calzado) | C69: 600000 | D69: ,00 | E69: -600000 | F69: ,00 | G69: ,00 | H69: ,00 | I69: ,00 | J69: ,00 | K69: ,00 | L69: ,00 | M69: ,00 | N69: ,00
A70: 3-1-2-02-01-02 | B70: Otros bienes transportables (excepto productos metálicos, maquinaria y equipo | C70: 65618000 | D70: ,00 | E70: 37094026 | F70: 102712026 | G70: ,00 | H70: 102712026 | I70: ,00 | J70: 94632052 | K70: 92,13 | L70: 11417410 | M70: 16316216 | N70: 15,89
A71: 3-1-2-02-01-02-0002 | B71: Pasta o pulpa, papel y productos de papel; impresos y artículos relacionados | C71: 23328000 | D71: ,00 | E71: 2000000 | F71: 25328000 | G71: ,00 | H71: 25328000 | I71: ,00 | J71: 23328000 | K71: 92,10 | L71: 1661787 | M71: 3999344 | N71: 15,79
A72: 3-1-2-02-01-02-0003 | B72: Productos de hornos de coque, de refinación de petróleo y combustible | C72: 10816000 | D72: ,00 | E72: ,00 | F72: 10816000 | G72: ,00 | H72: 10816000 | I72: ,00 | J72: 10816000 | K72: 100,00 | L72: 819612 | M72: 2269104 | N72: 20,98
A73: 3-1-2-02-01-02-0006 | B73: Productos de caucho y plástico | C73: 19639000 | D73: ,00 | E73: 35094026 | F73: 54733026 | G73: ,00 | H73: 54733026 | I73: ,00 | J73: 48653052 | K73: 88,89 | L73: 5873781 | M73: 5873781 | N73: 10,73
A74: 3-1-2-02-01-02-0008 | B74: Muebles; otros bienes transportables n.c.p. | C74: 11835000 | D74: ,00 | E74: ,00 | F74: 11835000 | G74: ,00 | H74: 11835000 | I74: ,00 | J74: 11835000 | K74: 100,00 | L74: 3062230 | M74: 4173987 | N74: 35,27
A75: 3-1-2-02-01-03 | B75: Productos metálicos | C75: 83663000 | D75: ,00 | E75: -33993654 | F75: 49669346 | G75: ,00 | H75: 49669346 | I75: ,00 | J75: 47669346 | K75: 95,97 | L75: 8846226 | M75: 10840478 | N75: 21,83
A76: 3-1-2-02-01-03-0002 | B76: Productos metálicos elaborados (excepto maquinaria y equipo) | C76: 3777000 | D76: ,00 | E76: 1000000 | F76: 4777000 | G76: ,00 | H76: 4777000 | I76: ,00 | J76: 3777000 | K76: 79,07 | L76: ,00 | M76: ,00 | N76: ,00
A77: 3-1-2-02-01-03-0003 | B77: Maquinaria para uso general | C77: ,00 | D77: ,00 | E77: 1000000 | F77: 1000000 | G77: ,00 | H77: 1000000 | I77: ,00 | J77: ,00 | K77: ,00 | L77: ,00 | M77: ,00 | N77: ,00
A78: 3-1-2-02-01-03-0005 | B78: Maquinaria de oficina, contabilidad e informática | C78: 71335000 | D78: ,00 | E78: -34994026 | F78: 36340974 | G78: ,00 | H78: 36340974 | I78: ,00 | J78: 36340974 | K78: 100,00 | L78: 5783995 | M78: 7778247 | N78: 21,40
A79: 3-1-2-02-01-03-0006 | B79: Maquinaria y aparatos eléctricos | C79: 8551000 | D79: ,00 | E79: -999628 | F79: 7551372 | G79: ,00 | H79: 7551372 | I79: ,00 | J79: 7551372 | K79: 100,00 | L79: 3062231 | M79: 3062231 | N79: 40,55
A80: 3-1-2-02-02 | B80: Adquisición de servicios | C80: 3592165000 | D80: ,00 | E80: -3000372 | F80: 3589164628 | G80: ,00 | H80: 3589164628 | I80: 36286378 | J80: 2997481886 | K80: 83,51 | L80: 339692573 | M80: 1324494588 | N80: 36,90
A81: 3-1-2-02-02-01 | B81: Servicios de venta y de distribución; alojamiento; servicios de suministro de comidas y bebidas; servicios de transporte; y servicios de distribución de electricidad, gas y agua | C81: ,00 | D81: ,00 | E81: 634154527 | F81: 634154527 | G81: ,00 | H81: 634154527 | I81: ,00 | J81: 545766037 | K81: 86,06 | L81: 45942552 | M81: 189370521 | N81: 29,86
A82: 3-1-2-02-02-01-0002 | B82: Servicios de transporte de pasajeros | C82: ,00 | D82: ,00 | E82: 1500000 | F82: 1500000 | G82: ,00 | H82: 1500000 | I82: ,00 | J82: ,00 | K82: ,00 | L82: ,00 | M82: ,00 | N82: ,00
A83: 3-1-2-02-02-01-0004 | B83: Servicios de alquiler de vehículos de transporte con operario | C83: ,00 | D83: ,00 | E83: 440849527 | F83: 440849527 | G83: ,00 | H83: 440849527 | I83: ,00 | J83: 373917339 | K83: 84,82 | L83: 33434050 | M83: 134071393 | N83: 30,41
A84: 3-1-2-02-02-01-0006 | B84: Servicios postales y de mensajería | C84: ,00 | D84: ,00 | E84: 191805000 | F84: 191805000 | G84: ,00 | H84: 191805000 | I84: ,00 | J84: 171848698 | K84: 89,60 | L84: 12508502 | M84: 55299128 | N84: 28,83
A85: 3-1-2-02-02-01-0006-001 | B85: Servicios de mensajería | C85: ,00 | D85: ,00 | E85: 191805000 | F85: 191805000 | G85: ,00 | H85: 191805000 | I85: ,00 | J85: 171848698 | K85: 89,60 | L85: 12508502 | M85: 55299128 | N85: 28,83
A86: 3-1-2-02-02-02 | B86: Servicios financieros y servicios conexos, servicios inmobiliarios y servicios de leasing | C86: 1032639000 | D86: ,00 | E86: -137093504 | F86: 895545496 | G86: ,00 | H86: 895545496 | I86: 2595982 | J86: 750860216 | K86: 83,84 | L86: 23168640 | M86: 279903846 | N86: 31,26
A87: 3-1-2-02-02-02-0001 | B87: Servicios financieros y servicios conexos | C87: 124146000 | D87: ,00 | E87: ,00 | F87: 124146000 | G87: ,00 | H87: 124146000 | I87: 195982 | J87: 101289210 | K87: 81,59 | L87: 195982 | M87: 100456617 | N87: 80,92
A88: 3-1-2-02-02-02-0001-007 | B88: Servicios de seguros de vehículos automotores | C88: 6959000 | D88: ,00 | E88: ,00 | F88: 6959000 | G88: ,00 | H88: 6959000 | I88: ,00 | J88: 5802040 | K88: 83,37 | L88: ,00 | M88: 5802040 | N88: 83,37
A89: 3-1-2-02-02-02-0001-009 | B89: Servicios de seguros generales de responsabilidad civil | C89: 88506000 | D89: ,00 | E89: ,00 | F89: 88506000 | G89: ,00 | H89: 88506000 | I89: ,00 | J89: 73791541 | K89: 83,37 | L89: ,00 | M89: 73791541 | N89: 83,37
A90: 3-1-2-02-02-02-0001-010 | B90: Servicios de seguro obligatorio de accidentes de tránsito (SOAT) | C90: 673000 | D90: ,00 | E90: ,00 | F90: 673000 | G90: ,00 | H90: 673000 | I90: ,00 | J90: 673000 | K90: 100,00 | L90: ,00 | M90: 673000 | N90: 100,00
A91: 3-1-2-02-02-02-0001-011 | B91: Servicios de administración de fondos de pensiones y cesantías | C91: 3175000 | D91: ,00 | E91: ,00 | F91: 3175000 | G91: ,00 | H91: 3175000 | I91: 195982 | J91: 998549 | K91: 31,45 | L91: 195982 | M91: 998549 | N91: 31,45
A92: 3-1-2-02-02-02-0001-012 | B92: Otros servicios de seguros distintos de los seguros de vida n.c.p. | C92: 24833000 | D92: ,00 | E92: ,00 | F92: 24833000 | G92: ,00 | H92: 24833000 | I92: ,00 | J92: 20024080 | K92: 80,63 | L92: ,00 | M92: 19191487 | N92: 77,28
A93: 3-1-2-02-02-02-0002 | B93: Servicios inmobiliarios | C93: 480180000 | D93: ,00 | E93: 109431992 | F93: 589611992 | G93: ,00 | H93: 589611992 | I93: ,00 | J93: 589426502 | K93: 99,97 | L93: 20572658 | M93: 142507725 | N93: 24,17
A94: 3-1-2-02-02-02-0002-001 | B94: Servicios de alquiler o arrendamiento con o sin opción de compra relativos a bienes inmuebles no residenciales propios o arrendados | C94: 480180000 | D94: ,00 | E94: 109431992 | F94: 589611992 | G94: ,00 | H94: 589611992 | I94: ,00 | J94: 589426502 | K94: 99,97 | L94: 20572658 | M94: 142507725 | N94: 24,17
A95: 3-1-2-02-02-02-0003 | B95: Servicios de arrendamiento o alquiler sin operario | C95: 428313000 | D95: ,00 | E95: -246525496 | F95: 181787504 | G95: ,00 | H95: 181787504 | I95: 2400000 | J95: 60144504 | K95: 33,09 | L95: 2400000 | M95: 36939504 | N95: 20,32
A96: 3-1-2-02-02-02-0003-001 | B96: Servicios de arrendamiento o alquiler de automóviles y furgonetas sin operario | C96: 428313000 | D96: ,00 | E96: -428313000 | F96: ,00 | G96: ,00 | H96: ,00 | I96: ,00 | J96: ,00 | K96: ,00 | L96: ,00 | M96: ,00 | N96: ,00
A97: 3-1-2-02-02-02-0003-005 | B97: Derechos de uso de productos de propiedad intelectual y otros productos similares | C97: ,00 | D97: ,00 | E97: 181787504 | F97: 181787504 | G97: ,00 | H97: 181787504 | I97: 2400000 | J97: 60144504 | K97: 33,09 | L97: 2400000 | M97: 36939504 | N97: 20,32
A98: 3-1-2-02-02-03 | B98: Servicios prestados a las empresas y servicios de producción | C98: 2190534000 | D98: ,00 | E98: -474994154 | F98: 1715539846 | G98: ,00 | H98: 1715539846 | I98: 7942016 | J98: 1432198754 | K98: 83,48 | L98: 250281997 | M98: 772790238 | N98: 45,05
A99: 3-1-2-02-02-03-0002 | B99: Servicios jurídicos y contables | C99: 3600000 | D99: ,00 | E99: 1000000 | F99: 4600000 | G99: ,00 | H99: 4600000 | I99: 879648 | J99: 1319472 | K99: 28,68 | L99: 879648 | M99: 1319472 | N99: 28,68
A100: 3-1-2-02-02-03-0002-001 | B100: Servicios de documentación y certificación jurídica | C100: 3600000 | D100: ,00 | E100: 1000000 | F100: 4600000 | G100: ,00 | H100: 4600000 | I100: 879648 | J100: 1319472 | K100: 28,68 | L100: 879648 | M100: 1319472 | N100: 28,68
A101: 3-1-2-02-02-03-0003 | B101: Otros servicios profesionales, científicos y técnicos | C101: 322543000 | D101: ,00 | E101: -72543000 | F101: 250000000 | G101: ,00 | H101: 250000000 | I101: ,00 | J101: 120254395 | K101: 48,10 | L101: 16801624 | M101: 34906624 | N101: 13,96
A102: 3-1-2-02-02-03-0003-001 | B102: Servicios de consultoría en administración y servicios de gestión; servicios de tecnología de la información | C102: 82543000 | D102: ,00 | E102: -82543000 | F102: ,00 | G102: ,00 | H102: ,00 | I102: ,00 | J102: ,00 | K102: ,00 | L102: ,00 | M102: ,00 | N102: ,00
A103: 3-1-2-02-02-03-0003-004 | B103: Servicios de suministro de infraestructura de hosting y de tecnología de la información (TI) | C103: ,00 | D103: ,00 | E103: 10000000 | F103: 10000000 | G103: ,00 | H103: 10000000 | I103: ,00 | J103: 4351495 | K103: 43,51 | L103: 362624 | M103: 362624 | N103: 3,63
A104: 3-1-2-02-02-03-0003-013 | B104: Otros servicios profesionales y técnicos n.c.p. | C104: 240000000 | D104: ,00 | E104: ,00 | F104: 240000000 | G104: ,00 | H104: 240000000 | I104: ,00 | J104: 115902900 | K104: 48,29 | L104: 16439000 | M104: 34544000 | N104: 14,39
A105: 3-1-2-02-02-03-0004 | B105: Servicios de telecomunicaciones, transmisión y suministro de información | C105: 221191000 | D105: ,00 | E105: ,00 | F105: 221191000 | G105: ,00 | H105: 221191000 | I105: 6062368 | J105: 142560575 | K105: 64,45 | L105: 14903378 | M105: 75368449 | N105: 34,07
A106: 3-1-2-02-02-03-0004-001 | B106: Servicios de telefonía fija | C106: 51000000 | D106: ,00 | E106: ,00 | F106: 51000000 | G106: ,00 | H106: 51000000 | I106: 3103090 | J106: 18615910 | K106: 36,50 | L106: 3103090 | M106: 18615910 | N106: 36,50
A107: 3-1-2-02-02-03-0004-002 | B107: Servicios de telecomunicaciones móviles | C107: 44100000 | D107: ,00 | E107: ,00 | F107: 44100000 | G107: ,00 | H107: 44100000 | I107: 2959278 | J107: 17852545 | K107: 40,48 | L107: 2959278 | M107: 17852545 | N107: 40,48
A108: 3-1-2-02-02-03-0004-004 | B108: Servicios de telecomunicaciones a través de internet | C108: 121091000 | D108: ,00 | E108: ,00 | F108: 121091000 | G108: ,00 | H108: 121091000 | I108: ,00 | J108: 106092120 | K108: 87,61 | L108: 8841010 | M108: 38899994 | N108: 32,12
A109: 3-1-2-02-02-03-0004-007 | B109: Servicios de transmisión de programas de radio y televisión | C109: 5000000 | D109: ,00 | E109: ,00 | F109: 5000000 | G109: ,00 | H109: 5000000 | I109: ,00 | J109: ,00 | K109: ,00 | L109: ,00 | M109: ,00 | N109: ,00
A110: 3-1-2-02-02-03-0005 | B110: Servicios de soporte | C110: 1140206000 | D110: ,00 | E110: -345957770 | F110: 794248230 | G110: ,00 | H110: 794248230 | I110: 1000000 | J110: 733199016 | K110: 92,31 | L110: 64492583 | M110: 269750672 | N110: 33,96
A111: 3-1-2-02-02-03-0005-001 | B111: Servicios de protección (guardas de seguridad) | C111: 505547000 | D111: ,00 | E111: -13750236 | F111: 491796764 | G111: ,00 | H111: 491796764 | I111: ,00 | J111: 458341200 | K111: 93,20 | L111: 40492583 | M111: 136684752 | N111: 27,79
A112: 3-1-2-02-02-03-0005-002 | B112: Servicios de limpieza general | C112: 268486000 | D112: ,00 | E112: -9074534 | F112: 259411466 | G112: ,00 | H112: 259411466 | I112: ,00 | J112: 235817816 | K112: 90,90 | L112: 24000000 | M112: 113306875 | N112: 43,68
A113: 3-1-2-02-02-03-0005-003 | B113: Servicios de copia y reproducción | C113: ,00 | D113: ,00 | E113: 1000000 | F113: 1000000 | G113: ,00 | H113: 1000000 | I113: ,00 | J113: ,00 | K113: ,00 | L113: ,00 | M113: ,00 | N113: ,00
A114: 3-1-2-02-02-03-0005-004 | B114: Servicios de correo | C114: 126368000 | D114: ,00 | E114: -126368000 | F114: ,00 | G114: ,00 | H114: ,00 | I114: ,00 | J114: ,00 | K114: ,00 | L114: ,00 | M114: ,00 | N114: ,00
A115: 3-1-2-02-02-03-0005-006 | B115: Servicios de organización y asistencia de convenciones y ferias | C115: 49500000 | D115: ,00 | E115: -7460000 | F115: 42040000 | G115: ,00 | H115: 42040000 | I115: 1000000 | J115: 39040000 | K115: 92,86 | L115: ,00 | M115: 19759045 | N115: 47,00
A116: 3-1-2-02-02-03-0005-007 | B116: Otros servicios de apoyo y de información no clasificados previamente | C116: 190305000 | D116: ,00 | E116: -190305000 | F116: ,00 | G116: ,00 | H116: ,00 | I116: ,00 | J116: ,00 | K116: ,00 | L116: ,00 | M116: ,00 | N116: ,00
A117: 3-1-2-02-02-03-0006 | B117: Servicios de mantenimiento, reparación e instalación (excepto servicios de construcción) | C117: 494994000 | D117: ,00 | E117: -49493384 | F117: 445500616 | G117: ,00 | H117: 445500616 | I117: ,00 | J117: 434865296 | K117: 97,61 | L117: 153204764 | M117: 391445021 | N117: 87,87
A118: 3-1-2-02-02-03-0006-003 | B118: Servicios de mantenimiento y reparación de computadores y equipo periférico | C118: 21803000 | D118: ,00 | E118: -11803000 | F118: 10000000 | G118: ,00 | H118: 10000000 | I118: ,00 | J118: ,00 | K118: ,00 | L118: ,00 | M118: ,00 | N118: ,00
A119: 3-1-2-02-02-03-0006-005 | B119: Servicios de mantenimiento y reparación de otra maquinaria y otro equipo | C119: ,00 | D119: ,00 | E119: 21803000 | F119: 21803000 | G119: ,00 | H119: 21803000 | I119: ,00 | J119: 21167680 | K119: 97,09 | L119: ,00 | M119: 10042443 | N119: 46,06
A120: 3-1-2-02-02-03-0006-012 | B120: Servicios de reparación de otros bienes | C120: 473191000 | D120: ,00 | E120: -59493384 | F120: 413697616 | G120: ,00 | H120: 413697616 | I120: ,00 | J120: 413697616 | K120: 100,00 | L120: 153204764 | M120: 381402578 | N120: 92,19
A121: 3-1-2-02-02-03-0007 | B121: Otros servicios de fabricación; servicios de edición, impresión y reproducción; servicios de recuperación de materiales | C121: 8000000 | D121: ,00 | E121: -8000000 | F121: ,00 | G121: ,00 | H121: ,00 | I121: ,00 | J121: ,00 | K121: ,00 | L121: ,00 | M121: ,00 | N121: ,00
A122: 3-1-2-02-02-03-0007-002 | B122: Servicios de impresión | C122: 8000000 | D122: ,00 | E122: -8000000 | F122: ,00 | G122: ,00 | H122: ,00 | I122: ,00 | J122: ,00 | K122: ,00 | L122: ,00 | M122: ,00 | N122: ,00
A123: 3-1-2-02-02-04 | B123: Servicios administrativos del Gobierno | C123: 142000000 | D123: ,00 | E123: ,00 | F123: 142000000 | G123: ,00 | H123: 142000000 | I123: 11748380 | J123: 66732120 | K123: 46,99 | L123: 11748380 | M123: 66732120 | N123: 46,99
A124: 3-1-2-02-02-04-0001 | B124: Otros servicios públicos generales del Gobierno n.c.p. | C124: 142000000 | D124: ,00 | E124: ,00 | F124: 142000000 | G124: ,00 | H124: 142000000 | I124: 11748380 | J124: 66732120 | K124: 46,99 | L124: 11748380 | M124: 66732120 | N124: 46,99
A125: 3-1-2-02-02-04-0001-001 | B125: Energía | C125: 108000000 | D125: ,00 | E125: ,00 | F125: 108000000 | G125: ,00 | H125: 108000000 | I125: 8657060 | J125: 58948410 | K125: 54,58 | L125: 8657060 | M125: 58948410 | N125: 54,58
A126: 3-1-2-02-02-04-0001-002 | B126: Acueducto y alcantarillado | C126: 24000000 | D126: ,00 | E126: ,00 | F126: 24000000 | G126: ,00 | H126: 24000000 | I126: 2350100 | J126: 5590360 | K126: 23,29 | L126: 2350100 | M126: 5590360 | N126: 23,29
A127: 3-1-2-02-02-04-0001-003 | B127: Aseo | C127: 10000000 | D127: ,00 | E127: ,00 | F127: 10000000 | G127: ,00 | H127: 10000000 | I127: 741220 | J127: 2193350 | K127: 21,93 | L127: 741220 | M127: 2193350 | N127: 21,93
A128: 3-1-2-02-02-05 | B128: Viáticos y gastos de viaje | C128: 30000000 | D128: ,00 | E128: -30000000 | F128: ,00 | G128: ,00 | H128: ,00 | I128: ,00 | J128: ,00 | K128: ,00 | L128: ,00 | M128: ,00 | N128: ,00
A129: 3-1-2-02-02-06 | B129: Capacitación | C129: 38992000 | D129: ,00 | E129: 864000 | F129: 39856000 | G129: ,00 | H129: 39856000 | I129: 2000000 | J129: 39856000 | K129: 100,00 | L129: ,00 | M129: ,00 | N129: ,00
A130: 3-1-2-02-02-07 | B130: Bienestar e incentivos | C130: 102000000 | D130: ,00 | E130: 2932039 | F130: 104932039 | G130: ,00 | H130: 104932039 | I130: 8000000 | J130: 104932039 | K130: 100,00 | L130: 8530504 | M130: 14503036 | N130: 13,82
A131: 3-1-2-02-02-08 | B131: Salud Ocupacional | C131: 56000000 | D131: ,00 | E131: 1136720 | F131: 57136720 | G131: ,00 | H131: 57136720 | I131: 4000000 | J131: 57136720 | K131: 100,00 | L131: 20500 | M131: 1194827 | N131: 2,09
A132: 3-1-3 | B132: Gastos diversos | C132: ,00 | D132: ,00 | E132: 500000 | F132: 500000 | G132: ,00 | H132: 500000 | I132: ,00 | J132: ,00 | K132: ,00 | L132: ,00 | M132: ,00 | N132: ,00
A133: 3-1-3-01 | B133: Impuestos | C133: ,00 | D133: ,00 | E133: 500000 | F133: 500000 | G133: ,00 | H133: 500000 | I133: ,00 | J133: ,00 | K133: ,00 | L133: ,00 | M133: ,00 | N133: ,00
A134: 3-1-3-01-03 | B134: Impuesto de vehículos | C134: ,00 | D134: ,00 | E134: 500000 | F134: 500000 | G134: ,00 | H134: 500000 | I134: ,00 | J134: ,00 | K134: ,00 | L134: ,00 | M134: ,00 | N134: ,00
A135: 3-3 | B135: INVERSIÓN | C135: 175711625000 | D135: 2850000000 | E135: 2850000000 | F135: 178561625000 | G135: ,00 | H135: 178561625000 | I135: 8147313758 | J135: 83349644504 | K135: 46,68 | L135: 14316308450 | M135: 33045512675 | N135: 18,51
A136: 3-3-1 | B136: DIRECTA | C136: 175711625000 | D136: 2850000000 | E136: 2850000000 | F136: 178561625000 | G136: ,00 | H136: 178561625000 | I136: 8147313758 | J136: 83349644504 | K136: 46,68 | L136: 14316308450 | M136: 33045512675 | N136: 18,51
A137: 3-3-1-15 | B137: Bogotá Mejor Para Todos | C137: 175711625000 | D137: 2850000000 | E137: 2850000000 | F137: 178561625000 | G137: ,00 | H137: 178561625000 | I137: 8147313758 | J137: 83349644504 | K137: 46,68 | L137: 14316308450 | M137: 33045512675 | N137: 18,51
A138: 3-3-1-15-01 | B138: Pilar Igualdad de calidad de vida | C138: 37994000000 | D138: 2700000000 | E138: 5919124766 | F138: 43913124766 | G138: ,00 | H138: 43913124766 | I138: 545459428 | J138: 37456373438 | K138: 85,30 | L138: 679726998 | M138: 15588426421 | N138: 35,50
A139: 3-3-1-15-01-11 | B139: Mejores oportunidades para el desarrollo a través de la cultura, la recreación y el deporte | C139: 37994000000 | D139: 2700000000 | E139: 5919124766 | F139: 43913124766 | G139: ,00 | H139: 43913124766 | I139: 545459428 | J139: 37456373438 | K139: 85,30 | L139: 679726998 | M139: 15588426421 | N139: 35,50
A140: 3-3-1-15-01-11-0997 | B140: Fortalecimiento de los procesos y de agentes de formación del sector | C140: 657000000 | D140: ,00 | E140: -12291067 | F140: 644708933 | G140: ,00 | H140: 644708933 | I140: 127900000 | J140: 488708933 | K140: 75,80 | L140: 34784000 | M140: 122489500 | N140: 19,00
A141: 3-3-1-15-01-11-0997-124 | B141: Formación para la transformación del ser | C141: 657000000 | D141: ,00 | E141: -12291067 | F141: 644708933 | G141: ,00 | H141: 644708933 | I141: 127900000 | J141: 488708933 | K141: 75,80 | L141: 34784000 | M141: 122489500 | N141: 19,00
A142: 3-3-1-15-01-11-1008 | B142: Fomento y gestión para el desarrollo cultural | C142: 3773000000 | D142: 2700000000 | E142: 6000000000 | F142: 9773000000 | G142: ,00 | H142: 9773000000 | I142: 320160428 | J142: 3547895622 | K142: 36,30 | L142: 308785221 | M142: 1495927697 | N142: 15,31
A143: 3-3-1-15-01-11-1008-126 | B143: Política de emprendimiento e industrias culturales y creativas | C143: 593508000 | D143: ,00 | E143: ,00 | F143: 593508000 | G143: ,00 | H143: 593508000 | I143: ,00 | J143: 593508000 | K143: 100,00 | L143: 54109000 | M143: 234168300 | N143: 39,45
A144: 3-3-1-15-01-11-1008-127 | B144: Programa de estímulos | C144: 3179492000 | D144: 2700000000 | E144: 6000000000 | F144: 9179492000 | G144: ,00 | H144: 9179492000 | I144: 320160428 | J144: 2954387622 | K144: 32,18 | L144: 254676221 | M144: 1261759397 | N144: 13,75
A145: 3-3-1-15-01-11-1011 | B145: Lectura, escritura y redes de conocimiento | C145: 33564000000 | D145: ,00 | E145: -68584167 | F145: 33495415833 | G145: ,00 | H145: 33495415833 | I145: 97399000 | J145: 33419768883 | K145: 99,77 | L145: 336157777 | M145: 13970009224 | N145: 41,71
A146: 3-3-1-15-01-11-1011-125 | B146: Plan Distrital de lectura y escritura | C146: 33564000000 | D146: ,00 | E146: -68584167 | F146: 33495415833 | G146: ,00 | H146: 33495415833 | I146: 97399000 | J146: 33419768883 | K146: 99,77 | L146: 336157777 | M146: 13970009224 | N146: 41,71
A147: 3-3-1-15-02 | B147: Pilar Democracia urbana | C147: 124806805000 | D147: ,00 | E147: -2658992793 | F147: 122147812207 | G147: ,00 | H147: 122147812207 | I147: 6419475009 | J147: 36224075744 | K147: 29,66 | L147: 11871788272 | M147: 12987263017 | N147: 10,63
A148: 3-3-1-15-02-17 | B148: Espacio público, derecho de todos | C148: 124806805000 | D148: ,00 | E148: -2658992793 | F148: 122147812207 | G148: ,00 | H148: 122147812207 | I148: 6419475009 | J148: 36224075744 | K148: 29,66 | L148: 11871788272 | M148: 12987263017 | N148: 10,63
A149: 3-3-1-15-02-17-0992 | B149: Patrimonio e Infraestructura cultural fortalecida | C149: 124806805000 | D149: ,00 | E149: -2658992793 | F149: 122147812207 | G149: ,00 | H149: 122147812207 | I149: 6419475009 | J149: 36224075744 | K149: 29,66 | L149: 11871788272 | M149: 12987263017 | N149: 10,63
A150: 3-3-1-15-02-17-0992-139 | B150: Gestión de infraestructura cultural y deportiva nueva, rehabilitada y recuperada | C150: 124806805000 | D150: ,00 | E150: -2658992793 | F150: 122147812207 | G150: ,00 | H150: 122147812207 | I150: 6419475009 | J150: 36224075744 | K150: 29,66 | L150: 11871788272 | M150: 12987263017 | N150: 10,63
A151: 3-3-1-15-03 | B151: Pilar Construcción de comunidad y cultura ciudadana | C151: 5445000000 | D151: 150000000 | E151: 48259835 | F151: 5493259835 | G151: ,00 | H151: 5493259835 | I151: 636146388 | J151: 2785171240 | K151: 50,70 | L151: 231638633 | M151: 706655918 | N151: 12,86
A152: 3-3-1-15-03-25 | B152: Cambio cultural y construcción del tejido social para la vida | C152: 5445000000 | D152: 150000000 | E152: 48259835 | F152: 5493259835 | G152: ,00 | H152: 5493259835 | I152: 636146388 | J152: 2785171240 | K152: 50,70 | L152: 231638633 | M152: 706655918 | N152: 12,86
A153: 3-3-1-15-03-25-0987 | B153: Saberes sociales para la cultura ciudadana y la transformación cultural | C153: 3015000000 | D153: 150000000 | E153: 70166834 | F153: 3085166834 | G153: ,00 | H153: 3085166834 | I153: 159794361 | J153: 1687663528 | K153: 54,70 | L153: 151721167 | M153: 484359667 | N153: 15,70
A154: 3-3-1-15-03-25-0987-156 | B154: Cultura ciudadana para la convivencia | C154: 3015000000 | D154: 150000000 | E154: 70166834 | F154: 3085166834 | G154: ,00 | H154: 3085166834 | I154: 159794361 | J154: 1687663528 | K154: 54,70 | L154: 151721167 | M154: 484359667 | N154: 15,70
A155: 3-3-1-15-03-25-1016 | B155: Poblaciones diversas e interculturales | C155: 749000000 | D155: ,00 | E155: ,00 | F155: 749000000 | G155: ,00 | H155: 749000000 | I155: 240852027 | J155: 350030877 | K155: 46,73 | L155: 17374000 | M155: 34598250 | N155: 4,62
A156: 3-3-1-15-03-25-1016-157 | B156: Intervención integral en territorios y poblaciones priorizadas a través de cultura, recreación y deporte | C156: 749000000 | D156: ,00 | E156: ,00 | F156: 749000000 | G156: ,00 | H156: 749000000 | I156: 240852027 | J156: 350030877 | K156: 46,73 | L156: 17374000 | M156: 34598250 | N156: 4,62
A157: 3-3-1-15-03-25-1137 | B157: Comunidades culturales para la paz | C157: 1681000000 | D157: ,00 | E157: -21906999 | F157: 1659093001 | G157: ,00 | H157: 1659093001 | I157: 235500000 | J157: 747476835 | K157: 45,05 | L157: 62543466 | M157: 187698001 | N157: 11,31
A158: 3-3-1-15-03-25-1137-157 | B158: Intervención integral en territorios y poblaciones priorizadas a través de cultura, recreación y deporte | C158: 1681000000 | D158: ,00 | E158: -21906999 | F158: 1659093001 | G158: ,00 | H158: 1659093001 | I158: 235500000 | J158: 747476835 | K158: 45,05 | L158: 62543466 | M158: 187698001 | N158: 11,31
A159: 3-3-1-15-07 | B159: Eje transversal Gobierno legítimo, fortalecimiento local y eficiencia | C159: 7465820000 | D159: ,00 | E159: -458391808 | F159: 7007428192 | G159: ,00 | H159: 7007428192 | I159: 546232933 | J159: 6884024082 | K159: 98,24 | L159: 1533154547 | M159: 3763167319 | N159: 53,70
A160: 3-3-1-15-07-42 | B160: Transparencia, gestión pública y servicio a la ciudadanía | C160: 2586000000 | D160: ,00 | E160: -407940267 | F160: 2178059733 | G160: ,00 | H160: 2178059733 | I160: 544482933 | J160: 2150025666 | K160: 98,71 | L160: 116284839 | M160: 562235237 | N160: 25,81
A161: 3-3-1-15-07-42-1009 | B161: Transparencia y gestión pública para todos | C161: 2586000000 | D161: ,00 | E161: -407940267 | F161: 2178059733 | G161: ,00 | H161: 2178059733 | I161: 544482933 | J161: 2150025666 | K161: 98,71 | L161: 116284839 | M161: 562235237 | N161: 25,81
A162: 3-3-1-15-07-42-1009-185 | B162: Fortalecimiento a la gestión pública efectiva y eficiente | C162: 2586000000 | D162: ,00 | E162: -407940267 | F162: 2178059733 | G162: ,00 | H162: 2178059733 | I162: 544482933 | J162: 2150025666 | K162: 98,71 | L162: 116284839 | M162: 562235237 | N162: 25,81
A163: 3-3-1-15-07-43 | B163: Modernización institucional | C163: 1467000000 | D163: ,00 | E163: -31671041 | F163: 1435328959 | G163: ,00 | H163: 1435328959 | I163: 1750000 | J163: 1403954716 | K163: 97,81 | L163: 141081225 | M163: 429596791 | N163: 29,93
A164: 3-3-1-15-07-43-1012 | B164: Fortalecimiento a la Gestión | C164: 1467000000 | D164: ,00 | E164: -31671041 | F164: 1435328959 | G164: ,00 | H164: 1435328959 | I164: 1750000 | J164: 1403954716 | K164: 97,81 | L164: 141081225 | M164: 429596791 | N164: 29,93
A165: 3-3-1-15-07-43-1012-189 | B165: Modernización administrativa | C165: 1467000000 | D165: ,00 | E165: -31671041 | F165: 1435328959 | G165: ,00 | H165: 1435328959 | I165: 1750000 | J165: 1403954716 | K165: 97,81 | L165: 141081225 | M165: 429596791 | N165: 29,93
A166: 3-3-1-15-07-44 | B166: Gobierno y ciudadanía digital | C166: 600000000 | D166: ,00 | E166: -18780500 | F166: 581219500 | G166: ,00 | H166: 581219500 | I166: ,00 | J166: 517223700 | K166: 88,99 | L166: 46851000 | M166: 171220333 | N166: 29,46
A167: 3-3-1-15-07-44-1007 | B167: Información y ciudadanía digital para todos | C167: 600000000 | D167: ,00 | E167: -18780500 | F167: 581219500 | G167: ,00 | H167: 581219500 | I167: ,00 | J167: 517223700 | K167: 88,99 | L167: 46851000 | M167: 171220333 | N167: 29,46
A168: 3-3-1-15-07-44-1007-192 | B168: Fortalecimiento institucional a través del uso de TIC | C168: 600000000 | D168: ,00 | E168: -18780500 | F168: 581219500 | G168: ,00 | H168: 581219500 | I168: ,00 | J168: 517223700 | K168: 88,99 | L168: 46851000 | M168: 171220333 | N168: 29,46
A169: 3-3-1-15-07-45 | B169: Gobernanza e influencia local, regional e internacional | C169: 2812820000 | D169: ,00 | E169: ,00 | F169: 2812820000 | G169: ,00 | H169: 2812820000 | I169: ,00 | J169: 2812820000 | K169: 100,00 | L169: 1228937483 | M169: 2600114958 | N169: 92,44
A170: 3-3-1-15-07-45-1018 | B170: Participación para la democracia cultural, recreativa y deportiva | C170: 2812820000 | D170: ,00 | E170: ,00 | F170: 2812820000 | G170: ,00 | H170: 2812820000 | I170: ,00 | J170: 2812820000 | K170: 100,00 | L170: 1228937483 | M170: 2600114958 | N170: 92,44
A171: 3-3-1-15-07-45-1018-196 | B171: Fortalecimiento local, gobernabilidad, gobernanza y participación ciudadana | C171: 2812820000 | D171: ,00 | E171: ,00 | F171: 2812820000 | G171: ,00 | H171: 2812820000 | I171: ,00 | J171: 2812820000 | K171: 100,00 | L171: 1228937483 | M171: 2600114958 | N171: 92,44
